{"text_format":"1","workbook":"xlsx","n_sheets":4,"sheets":["ACL1","Factor_Table","Version","User Notes"],"not_rendered":{"charts":0,"images":0,"macros":1,"external_links":0,"defined_names":1,"comments":1,"pivot_tables":0},"unopened":[],"bounds":{"document_bytes":16777216,"sheet_cells":100000,"rows_first":2000,"rows_last":500,"rows_between":2000,"halvings":0,"cell_chars":16384,"cell_head_chars":4096},"cells_cut":0,"cells_raw":0,"read":"whole","date_system":"1900"}

{"sheet":"ACL1","index":0,"n_rows":69,"n_cols":24,"rows_kept":69,"cut":false,"hidden":false,"merged":[[45,0,47,0],[28,20,28,21],[28,22,28,23],[28,12,28,13],[28,14,28,15],[28,16,28,17],[28,18,28,19],[28,8,28,9],[28,10,28,11],[28,4,28,5],[28,6,28,7],[29,0,38,0],[44,2,44,3],[39,0,43,0]]}
["Penalty Calculation Methodology Worksheet - Version Date: 2/4/2014"]
[]
[null,null,null,null,"Select Item","Potential Harm for Discharge Violations","Select Item","Potential Harm for Discharge Violations","Select Item","Potential Harm for Discharge Violations","Select Item","Potential Harm for Discharge Violations","Select Item","Potential Harm for Discharge Violations","Select Item","Potential Harm for Discharge Violations","Select Item","Potential Harm for Discharge Violations","Select Item","Potential Harm for Discharge Violations","Select Item","Potential Harm for Discharge Violations","Select Item","Potential Harm for Discharge Violations"]
[null,null,null,"0 = Negligible","Select Item","0 = Negligible","Select Item","0 = Negligible","Select Item","0 = Negligible","Select Item","0 = Negligible","Select Item","0 = Negligible","Select Item","0 = Negligible","Select Item","0 = Negligible","Select Item","0 = Negligible","Select Item","0 = Negligible","Select Item","0 = Negligible"]
[null,null,null,"1 = Minor","Select Item","1 = Minor","Select Item","1 = Minor","Select Item","1 = Minor","Select Item","1 = Minor","Select Item","1 = Minor","Select Item","1 = Minor","Select Item","1 = Minor","Select Item","1 = Minor","Select Item","1 = Minor","Select Item","1 = Minor"]
[null,null,null,"2 = Below Moderate","Select Item","2 = Below Moderate","Select Item","2 = Below Moderate","Select Item","2 = Below Moderate","Select Item","2 = Below Moderate","Select Item","2 = Below Moderate","Select Item","2 = Below Moderate","Select Item","2 = Below Moderate","Select Item","2 = Below Moderate","Select Item","2 = Below Moderate","Select Item","2 = Below Moderate"]
[null,null,null,"3 = Moderate","Select Item","3 = Moderate","Select Item","3 = Moderate","Select Item","3 = Moderate","Select Item","3 = Moderate","Select Item","3 = Moderate","Select Item","3 = Moderate","Select Item","3 = Moderate","Select Item","3 = Moderate","Select Item","3 = Moderate","Select Item","3 = Moderate"]
[null,null,null,"4 = Above Moderate","Select Item","4 = Above Moderate","Select Item","4 = Above Moderate","Select Item","4 = Above Moderate","Select Item","4 = Above Moderate","Select Item","4 = Above Moderate","Select Item","4 = Above Moderate","Select Item","4 = Above Moderate","Select Item","4 = Above Moderate","Select Item","4 = Above Moderate","Select Item","4 = Above Moderate"]
[null,null,null,"5 = Major","Select Item","5 = Major","Select Item","5 = Major","Select Item","5 = Major","Select Item","5 = Major","Select Item","5 = Major","Select Item","5 = Major","Select Item","5 = Major","Select Item","5 = Major","Select Item","5 = Major","Select Item","5 = Major"]
[null,null,null,null,"Select Item","Characteristics of the Discharge","Select Item","Characteristics of the Discharge","Select Item","Characteristics of the Discharge","Select Item","Characteristics of the Discharge","Select Item","Characteristics of the Discharge","Select Item","Characteristics of the Discharge","Select Item","Characteristics of the Discharge","Select Item","Characteristics of the Discharge","Select Item","Characteristics of the Discharge","Select Item","Characteristics of the Discharge"]
[null,null,null,"0 = Discharged material poses negligible risk","Select Item","0 = Discharged material poses negligible risk","Select Item","0 = Discharged material poses negligible risk","Select Item","0 = Discharged material poses negligible risk","Select Item","0 = Discharged material poses negligible risk","Select Item","0 = Discharged material poses negligible risk","Select Item",null,"Select Item",null,"Select Item",null,"Select Item",null,"Select Item"]
[null,null,null,"1 = Discharged material poses minor risk","Select Item","1 = Discharged material poses minor risk","Select Item","1 = Discharged material poses minor risk","Select Item","1 = Discharged material poses minor risk","Select Item","1 = Discharged material poses minor risk","Select Item","1 = Discharged material poses minor risk","Select Item","1 = Discharged material poses minor risk","Select Item","1 = Discharged material poses minor risk","Select Item","1 = Discharged material poses minor risk","Select Item","1 = Discharged material poses minor risk","Select Item","1 = Discharged material poses minor risk"]
[null,null,null,"2 = Discharged material poses moderate risk","Select Item","2 = Discharged material poses moderate risk","Select Item","2 = Discharged material poses moderate risk","Select Item","2 = Discharged material poses moderate risk","Select Item","2 = Discharged material poses moderate risk","Select Item","2 = Discharged material poses moderate risk","Select Item","2 = Discharged material poses moderate risk","Select Item","2 = Discharged material poses moderate risk","Select Item","2 = Discharged material poses moderate risk","Select Item","2 = Discharged material poses moderate risk","Select Item","2 = Discharged material poses moderate risk"]
[null,null,null,"3 = Discharged material poses above moderate risk","Select Item","3 = Discharged material poses above moderate risk","Select Item","3 = Discharged material poses above moderate risk","Select Item","3 = Discharged material poses above moderate risk","Select Item","3 = Discharged material poses above moderate risk","Select Item","3 = Discharged material poses above moderate risk","Select Item","3 = Discharged material poses above moderate risk","Select Item","3 = Discharged material poses above moderate risk","Select Item","3 = Discharged material poses above moderate risk","Select Item","3 = Discharged material poses above moderate risk","Select Item","3 = Discharged material poses above moderate risk"]
[null,null,null,"4 = Discharged material poses significant risk","Select Item","4 = Discharged material poses significant risk","Select Item","4 = Discharged material poses significant risk","Select Item","4 = Discharged material poses significant risk","Select Item","4 = Discharged material poses significant risk","Select Item","4 = Discharged material poses significant risk","Select Item","4 = Discharged material poses significant risk","Select Item","4 = Discharged material poses significant risk","Select Item","4 = Discharged material poses significant risk","Select Item","4 = Discharged material poses significant risk","Select Item","4 = Discharged material poses significant risk"]
[null,null,null,null,"Select Item","Susceptibility of Cleanup or Abatement","Select Item","Susceptibility of Cleanup or Abatement","Select Item","Susceptibility of Cleanup or Abatement","Select Item","Susceptibility of Cleanup or Abatement","Select Item","Susceptibility of Cleanup or Abatement","Select Item","Susceptibility of Cleanup or Abatement","Select Item","Susceptibility of Cleanup or Abatement","Select Item","Susceptibility of Cleanup or Abatement","Select Item","Susceptibility of Cleanup or Abatement","Select Item","Susceptibility of Cleanup or Abatement"]
[null,null,null,"> 50% of Discharge Susceptible to Cleanup or Abatement","Select Item","> 50% of Discharge Susceptible to Cleanup or Abatement","Select Item","> 50% of Discharge Susceptible to Cleanup or Abatement","Select Item","> 50% of Discharge Susceptible to Cleanup or Abatement","Select Item","> 50% of Discharge Susceptible to Cleanup or Abatement","Select Item","> 50% of Discharge Susceptible to Cleanup or Abatement","Select Item","> 50% of Discharge Susceptible to Cleanup or Abatement","Select Item","> 50% of Discharge Susceptible to Cleanup or Abatement","Select Item","> 50% of Discharge Susceptible to Cleanup or Abatement","Select Item","> 50% of Discharge Susceptible to Cleanup or Abatement","Select Item","> 50% of Discharge Susceptible to Cleanup or Abatement"]
[null,null,null,"< 50% of Discharge Susceptible to Cleanup or Abatement","Select Item","< 50% of Discharge Susceptible to Cleanup or Abatement","Select Item","< 50% of Discharge Susceptible to Cleanup or Abatement","Select Item","< 50% of Discharge Susceptible to Cleanup or Abatement","Select Item","< 50% of Discharge Susceptible to Cleanup or Abatement","Select Item","< 50% of Discharge Susceptible to Cleanup or Abatement","Select Item","< 50% of Discharge Susceptible to Cleanup or Abatement","Select Item","< 50% of Discharge Susceptible to Cleanup or Abatement","Select Item","< 50% of Discharge Susceptible to Cleanup or Abatement","Select Item","< 50% of Discharge Susceptible to Cleanup or Abatement","Select Item","< 50% of Discharge Susceptible to Cleanup or Abatement"]
[null,null,null,null,"Select Item","Deviation from Requirement","Select Item","Deviation from Requirement","Select Item","Deviation from Requirement","Select Item","Deviation from Requirement","Select Item","Deviation from Requirement","Select Item","Deviation from Requirement","Select Item","Deviation from Requirement","Select Item","Deviation from Requirement","Select Item","Deviation from Requirement","Select Item","Deviation from Requirement"]
[null,null,null,"Minor"]
[null,null,null,"Moderate"]
[null,null,null,"Major"]
[]
[]
[]
[]
[]
["Discharger Name/ID:"]
[null,null,null,null,"Violation 1",null,"Violation 2",null,"Violation 3",null,"Violation 4",null,"Violation 5",null,"Violation 6",null,"Violation 7",null,"Violation 8",null,"Violation 9",null,"Violation 10"]
["Discharge Violations","Step 1",null,"Potential Harm Factor (Generated from Button)"]
[null,"Step 2",null,"Per Gallon Factor (Generated from Button)"]
[null,null,null,"Gallons"]
[null,null,null,"Statutory Maximum"]
[null,null,null,"High Volume "]
[null,null,null,"Total",null,{"$f":"IF(E34=0,E31*E32*E33,E31*E32*E34)","v":0},null,{"$f":"IF(G34=0,G31*G32*G33,G31*G32*G34)","v":0},null,{"$f":"IF(I34=0,I31*I32*I33,I31*I32*I34)","v":0},null,{"$f":"IF(K34=0,K31*K32*K33,K31*K32*K34)","v":0},null,{"$f":"IF(M34=0,M31*M32*M33,M31*M32*M34)","v":0},null,{"$f":"IF(O34=0,O31*O32*O33,O31*O32*O34)","v":0},null,{"$f":"IF(Q34=0,Q31*Q32*Q33,Q31*Q32*Q34)","v":0},null,{"$f":"IF(S34=0,S31*S32*S33,S31*S32*S34)","v":0},null,{"$f":"IF(U34=0,U31*U32*U33,U31*U32*U34)","v":0},null,{"$f":"IF(W34=0,W31*W32*W33,W31*W32*W34)","v":0}]
[null,null,null,"Per Day Factor (Generated from Button)",{"$f":"E31","v":0},null,{"$f":"G31","v":0},null,{"$f":"I31","v":0},null,{"$f":"K31","v":0},null,{"$f":"M31","v":0},null,{"$f":"O31","v":0},null,{"$f":"Q31","v":0},null,{"$f":"S31","v":0},null,{"$f":"U31","v":0},null,{"$f":"W31","v":0}]
[null,null,null,"Days"]
[null,null,null,"Statutory Max per Day"]
[null,null,null,"Total",null,{"$f":"E36*E37*E38","v":0},null,{"$f":"G36*G37*G38","v":0},null,{"$f":"I36*I37*I38","v":0},null,{"$f":"K36*K37*K38","v":0},null,{"$f":"M36*M37*M38","v":0},null,{"$f":"O36*O37*O38","v":0},null,{"$f":"Q36*Q37*Q38","v":0},null,{"$f":"S36*S37*S38","v":0},null,{"$f":"U36*U37*U38","v":0},null,{"$f":"W36*W37*W38","v":0}]
["Non-Discharge Violations","Step 3",null,"Per Day Factor"]
[null,null,null,"Total Days"]
[null,null,null,"Multiple Day Violation Reduction"]
[null,null,null,"Statutory Max per Day"]
[null,null,null,"Total",null,{"$f":"IF(E42>0,E40*E42*E43,E40*E41*E43)","v":0},null,{"$f":"IF(G42>0,G40*G42*G43,G40*G41*G43)","v":0},null,{"$f":"IF(I42>0,I40*I42*I43,I40*I41*I43)","v":0},null,{"$f":"IF(K42>0,K40*K42*K43,K40*K41*K43)","v":0},null,{"$f":"IF(M42>0,M40*M42*M43,M40*M41*M43)","v":0},null,{"$f":"IF(O42>0,O40*O42*O43,O40*O41*O43)","v":0},null,{"$f":"IF(Q42>0,Q40*Q42*Q43,Q40*Q41*Q43)","v":0},null,{"$f":"IF(S42>0,S40*S42*S43,S40*S41*S43)","v":0},null,{"$f":"IF(U42>0,U40*U42*U43,U40*U41*U43)","v":0},null,{"$f":"IF(W42>0,W40*W42*W43,W40*W41*W43)","v":0}]
[null,null,"Initial Amount of the ACL",null,null,{"$f":"F35+F39+F44","v":0},null,{"$f":"H35+H39+H44","v":0},null,{"$f":"J35+J39+J44","v":0},null,{"$f":"L35+L39+L44","v":0},null,{"$f":"N35+N39+N44","v":0},null,{"$f":"P35+P39+P44","v":0},null,{"$f":"R35+R39+R44","v":0},null,{"$f":"T35+T39+T44","v":0},null,{"$f":"V35+V39+V44","v":0},null,{"$f":"X35+X39+X44","v":0}]
["Add'l Factors","Step 4",null,"Culpability",null,{"$f":"F45*E46","v":0},null,{"$f":"H45*G46","v":0},null,{"$f":"J45*I46","v":0},null,{"$f":"L45*K46","v":0},null,{"$f":"N45*M46","v":0},null,{"$f":"P45*O46","v":0},null,{"$f":"R45*Q46","v":0},null,{"$f":"T45*S46","v":0},null,{"$f":"V45*U46","v":0},null,{"$f":"X45*W46","v":0}]
[null,null,null,"Cleanup and Cooperation",null,{"$f":"F46*E47","v":0},null,{"$f":"H46*G47","v":0},null,{"$f":"J46*I47","v":0},null,{"$f":"L46*K47","v":0},null,{"$f":"N46*M47","v":0},null,{"$f":"P46*O47","v":0},null,{"$f":"R46*Q47","v":0},null,{"$f":"T46*S47","v":0},null,{"$f":"V46*U47","v":0},null,{"$f":"X46*W47","v":0}]
[null,null,null,"History of Violations",null,{"$f":"F47*E48","v":0},null,{"$f":"H47*G48","v":0},null,{"$f":"J47*I48","v":0},null,{"$f":"L47*K48","v":0},null,{"$f":"N47*M48","v":0},null,{"$f":"P47*O48","v":0},null,{"$f":"R47*Q48","v":0},null,{"$f":"T47*S48","v":0},null,{"$f":"V47*U48","v":0},null,{"$f":"X47*W48","v":0}]
[null,null,null,"Maximum for this Violation",{"$f":"E32*E33+E37*E38+E41*E43","v":0},null,{"$f":"G32*G33+G37*G38+G41*G43","v":0},null,{"$f":"I32*I33+I37*I38+I41*I43","v":0},null,{"$f":"K32*K33+K37*K38+K41*K43","v":0},null,{"$f":"M32*M33+M37*M38+M41*M43","v":0},null,{"$f":"O32*O33+O37*O38+O41*O43","v":0},null,{"$f":"Q32*Q33+Q37*Q38+Q41*Q43","v":0},null,{"$f":"S32*S33+S37*S38+S41*S43","v":0},null,{"$f":"U32*U33+U37*U38+U41*U43","v":0},null,{"$f":"W32*W33+W37*W38+W41*W43","v":0}]
[null,null,null,"Amount for this Violation",null,{"$f":"IF(F48=0,0,IF((E49)<F48,E49,F48))","v":0},null,{"$f":"IF(H48=0,0,IF((G49)<H48,G49,H48))","v":0},null,{"$f":"IF(J48=0,0,IF((I49)<J48,I49,J48))","v":0},null,{"$f":"IF(L48=0,0,IF((K49)<L48,K49,L48))","v":0},null,{"$f":"IF(N48=0,0,IF((M49)<N48,M49,N48))","v":0},null,{"$f":"IF(P48=0,0,IF((O49)<P48,O49,P48))","v":0},null,{"$f":"IF(R48=0,0,IF((Q49)<R48,Q49,R48))","v":0},null,{"$f":"IF(T48=0,0,IF((S49)<T48,S49,T48))","v":0},null,{"$f":"IF(V48=0,0,IF((U49)<V48,U49,V48))","v":0},null,{"$f":"IF(X48=0,0,IF((W49)<X48,W49,X48))","v":0}]
[]
[null,"Step 5","Total Base Liability Amount",null,null,{"$f":"F50+H50+J50+L50+N50+P50+R50+T50+V50+X50","v":0}]
[null,"Step 6",null,"Ability to Pay & to Continue in Business",null,{"$f":"F52*E53","v":0}]
[null,"Step 7",null,"Other Factors as Justice May Require",null,{"$f":"F53*E54","v":0}]
[null,null,null,"Staff Costs",null,{"$f":"F54+E55","v":0}]
[null,"Step 8",null,"Economic Benefit"]
[null,"Step 9",null,"Minimum Liability Amount",{"$f":"IF(E56=0,,E56*1.1)","v":0}]
[null,null,null,"Maximum Liability Amount",{"$f":"E49+G49+I49+K49+M49+O49+Q49+S49+U49+W49","v":0}]
[null,"Step 10","Final Liability Amount",null,null,{"$f":"IF(F55>E58,E58,IF(F55<E57,MIN(E57,E58),F55))","v":0}]
[]
[]
[]
[null,null,null,"Penalty Day Range Generator"]
[]
[null,null,null,"Start Date of Violation="]
[null,null,null,"End Date of Violation="]
[]
[null,null,null,"Maximum Days Fined (Steps 2 & 3) =",{"$f":"IF(OR(E65=0,E66=0),0,E66-E65+1)","v":0},"Days"]
[null,null,null,"Minimum Days Fined (Steps 2 & 3) =",{"$f":"IF(E68<=0,\"\",IF(E68<30,E68,ROUNDDOWN(E68/30,0)+6))","v":""},"Days"]

{"sheet":"Factor_Table","index":1,"n_rows":1101,"n_cols":16,"rows_kept":1101,"cut":false,"hidden":false,"merged":[]}
[null,1,2,3,4,5,6,7,8,9,10,null,null,null,"Days of Violations","Minimum Days"]
["Minor",5.0000000000000001E-3,7.0000000000000001E-3,8.9999999999999993E-3,1.0999999999999999E-2,0.06,0.08,0.1,0.25,0.3,0.35,null,null,null,1,1]
["Moderate",7.0000000000000001E-3,0.01,1.2999999999999999E-2,1.6E-2,0.1,0.15,0.2,0.4,0.5,0.6,null,null,null,2,2]
["Major",0.01,1.4999999999999999E-2,0.02,2.5000000000000001E-2,0.15,0.22,0.31,0.6,0.8,1,null,null,null,3,3]
[null,null,null,null,null,null,null,null,null,null,null,null,null,null,4,4]
[null,null,null,null,null,null,null,null,null,null,null,null,null,null,5,5]
[null,null,null,null,null,null,null,null,null,null,null,null,null,null,6,6]
[null,null,null,null,null,null,null,null,null,null,null,null,null,null,7,7]
[null,null,null,null,null,null,null,null,null,null,null,null,null,null,8,8]
[null,null,null,null,null,null,null,null,null,null,null,null,null,null,9,9]
[null,null,null,null,null,null,null,null,null,null,null,null,null,null,10,10]
[null,null,null,null,null,null,null,null,null,null,null,null,null,null,11,11]
[null,null,null,null,null,null,null,null,null,null,null,null,null,null,12,12]
[null,null,null,null,null,null,null,null,null,null,null,null,null,null,13,13]
[null,null,null,null,null,null,null,null,null,null,null,null,null,null,14,14]
[null,null,null,null,null,null,null,null,null,null,null,null,null,null,15,15]
[null,null,null,null,null,null,null,null,null,null,null,null,null,null,16,16]
[null,null,null,null,null,null,null,null,null,null,null,null,null,null,17,17]
[null,null,null,null,null,null,null,null,null,null,null,null,null,null,18,18]
[null,null,null,null,null,null,null,null,null,null,null,null,null,null,19,19]
[null,null,null,null,null,null,null,null,null,null,null,null,null,null,20,20]
[null,null,null,null,null,null,null,null,null,null,null,null,null,null,21,21]
[null,null,null,null,null,null,null,null,null,null,null,null,null,null,22,22]
[null,null,null,null,null,null,null,null,null,null,null,null,null,null,23,23]
[null,null,null,null,null,null,null,null,null,null,null,null,null,null,24,24]
[null,null,null,null,null,null,null,null,null,null,null,null,null,null,25,25]
[null,null,null,null,null,null,null,null,null,null,null,null,null,null,26,26]
[null,null,null,null,null,null,null,null,null,null,null,null,null,null,27,27]
[null,null,null,null,null,null,null,null,null,null,null,null,null,null,28,28]
[null,null,null,null,null,null,null,null,null,null,null,null,null,null,29,29]
[null,null,null,null,null,null,null,null,null,null,null,null,null,null,30,30]
[null,null,null,null,null,null,null,null,null,null,null,null,null,null,31,7]
[null,null,null,null,null,null,null,null,null,null,null,null,null,null,32,7]
[null,null,null,null,null,null,null,null,null,null,null,null,null,null,33,7]
[null,null,null,null,null,null,null,null,null,null,null,null,null,null,34,7]
[null,null,null,null,null,null,null,null,null,null,null,null,null,null,35,7]
[null,null,null,null,null,null,null,null,null,null,null,null,null,null,36,7]
[null,null,null,null,null,null,null,null,null,null,null,null,null,null,37,7]
[null,null,null,null,null,null,null,null,null,null,null,null,null,null,38,7]
[null,null,null,null,null,null,null,null,null,null,null,null,null,null,39,7]
[null,null,null,null,null,null,null,null,null,null,null,null,null,null,40,7]
[null,null,null,null,null,null,null,null,null,null,null,null,null,null,41,7]
[null,null,null,null,null,null,null,null,null,null,null,null,null,null,42,7]
[null,null,null,null,null,null,null,null,null,null,null,null,null,null,43,7]
[null,null,null,null,null,null,null,null,null,null,null,null,null,null,44,7]
[null,null,null,null,null,null,null,null,null,null,null,null,null,null,45,7]
[null,null,null,null,null,null,null,null,null,null,null,null,null,null,46,7]
[null,null,null,null,null,null,null,null,null,null,null,null,null,null,47,7]
[null,null,null,null,null,null,null,null,null,null,null,null,null,null,48,7]
[null,null,null,null,null,null,null,null,null,null,null,null,null,null,49,7]
[null,null,null,null,null,null,null,null,null,null,null,null,null,null,50,7]
[null,null,null,null,null,null,null,null,null,null,null,null,null,null,51,7]
[null,null,null,null,null,null,null,null,null,null,null,null,null,null,52,7]
[null,null,null,null,null,null,null,null,null,null,null,null,null,null,53,7]
[null,null,null,null,null,null,null,null,null,null,null,null,null,null,54,7]
[null,null,null,null,null,null,null,null,null,null,null,null,null,null,55,7]
[null,null,null,null,null,null,null,null,null,null,null,null,null,null,56,7]
[null,null,null,null,null,null,null,null,null,null,null,null,null,null,57,7]
[null,null,null,null,null,null,null,null,null,null,null,null,null,null,58,7]
[null,null,null,null,null,null,null,null,null,null,null,null,null,null,59,7]
[null,null,null,null,null,null,null,null,null,null,null,null,null,null,60,8]
[null,null,null,null,null,null,null,null,null,null,null,null,null,null,61,8]
[null,null,null,null,null,null,null,null,null,null,null,null,null,null,62,8]
[null,null,null,null,null,null,null,null,null,null,null,null,null,null,63,8]
[null,null,null,null,null,null,null,null,null,null,null,null,null,null,64,8]
[null,null,null,null,null,null,null,null,null,null,null,null,null,null,65,8]
[null,null,null,null,null,null,null,null,null,null,null,null,null,null,66,8]
[null,null,null,null,null,null,null,null,null,null,null,null,null,null,67,8]
[null,null,null,null,null,null,null,null,null,null,null,null,null,null,68,8]
[null,null,null,null,null,null,null,null,null,null,null,null,null,null,69,8]
[null,null,null,null,null,null,null,null,null,null,null,null,null,null,70,8]
[null,null,null,null,null,null,null,null,null,null,null,null,null,null,71,8]
[null,null,null,null,null,null,null,null,null,null,null,null,null,null,72,8]
[null,null,null,null,null,null,null,null,null,null,null,null,null,null,73,8]
[null,null,null,null,null,null,null,null,null,null,null,null,null,null,74,8]
[null,null,null,null,null,null,null,null,null,null,null,null,null,null,75,8]
[null,null,null,null,null,null,null,null,null,null,null,null,null,null,76,8]
[null,null,null,null,null,null,null,null,null,null,null,null,null,null,77,8]
[null,null,null,null,null,null,null,null,null,null,null,null,null,null,78,8]
[null,null,null,null,null,null,null,null,null,null,null,null,null,null,79,8]
[null,null,null,null,null,null,null,null,null,null,null,null,null,null,80,8]
[null,null,null,null,null,null,null,null,null,null,null,null,null,null,81,8]
[null,null,null,null,null,null,null,null,null,null,null,null,null,null,82,8]
[null,null,null,null,null,null,null,null,null,null,null,null,null,null,83,8]
[null,null,null,null,null,null,null,null,null,null,null,null,null,null,84,8]
[null,null,null,null,null,null,null,null,null,null,null,null,null,null,85,8]
[null,null,null,null,null,null,null,null,null,null,null,null,null,null,86,8]
[null,null,null,null,null,null,null,null,null,null,null,null,null,null,87,8]
[null,null,null,null,null,null,null,null,null,null,null,null,null,null,88,8]
[null,null,null,null,null,null,null,null,null,null,null,null,null,null,89,8]
[null,null,null,null,null,null,null,null,null,null,null,null,null,null,90,9]
[null,null,null,null,null,null,null,null,null,null,null,null,null,null,91,9]
[null,null,null,null,null,null,null,null,null,null,null,null,null,null,92,9]
[null,null,null,null,null,null,null,null,null,null,null,null,null,null,93,9]
[null,null,null,null,null,null,null,null,null,null,null,null,null,null,94,9]
[null,null,null,null,null,null,null,null,null,null,null,null,null,null,95,9]
[null,null,null,null,null,null,null,null,null,null,null,null,null,null,96,9]
[null,null,null,null,null,null,null,null,null,null,null,null,null,null,97,9]
[null,null,null,null,null,null,null,null,null,null,null,null,null,null,98,9]
[null,null,null,null,null,null,null,null,null,null,null,null,null,null,99,9]
[null,null,null,null,null,null,null,null,null,null,null,null,null,null,100,9]
[null,null,null,null,null,null,null,null,null,null,null,null,null,null,101,9]
[null,null,null,null,null,null,null,null,null,null,null,null,null,null,102,9]
[null,null,null,null,null,null,null,null,null,null,null,null,null,null,103,9]
[null,null,null,null,null,null,null,null,null,null,null,null,null,null,104,9]
[null,null,null,null,null,null,null,null,null,null,null,null,null,null,105,9]
[null,null,null,null,null,null,null,null,null,null,null,null,null,null,106,9]
[null,null,null,null,null,null,null,null,null,null,null,null,null,null,107,9]
[null,null,null,null,null,null,null,null,null,null,null,null,null,null,108,9]
[null,null,null,null,null,null,null,null,null,null,null,null,null,null,109,9]
[null,null,null,null,null,null,null,null,null,null,null,null,null,null,110,9]
[null,null,null,null,null,null,null,null,null,null,null,null,null,null,111,9]
[null,null,null,null,null,null,null,null,null,null,null,null,null,null,112,9]
[null,null,null,null,null,null,null,null,null,null,null,null,null,null,113,9]
[null,null,null,null,null,null,null,null,null,null,null,null,null,null,114,9]
[null,null,null,null,null,null,null,null,null,null,null,null,null,null,115,9]
[null,null,null,null,null,null,null,null,null,null,null,null,null,null,116,9]
[null,null,null,null,null,null,null,null,null,null,null,null,null,null,117,9]
[null,null,null,null,null,null,null,null,null,null,null,null,null,null,118,9]
[null,null,null,null,null,null,null,null,null,null,null,null,null,null,119,9]
[null,null,null,null,null,null,null,null,null,null,null,null,null,null,120,10]
[null,null,null,null,null,null,null,null,null,null,null,null,null,null,121,10]
[null,null,null,null,null,null,null,null,null,null,null,null,null,null,122,10]
[null,null,null,null,null,null,null,null,null,null,null,null,null,null,123,10]
[null,null,null,null,null,null,null,null,null,null,null,null,null,null,124,10]
[null,null,null,null,null,null,null,null,null,null,null,null,null,null,125,10]
[null,null,null,null,null,null,null,null,null,null,null,null,null,null,126,10]
[null,null,null,null,null,null,null,null,null,null,null,null,null,null,127,10]
[null,null,null,null,null,null,null,null,null,null,null,null,null,null,128,10]
[null,null,null,null,null,null,null,null,null,null,null,null,null,null,129,10]
[null,null,null,null,null,null,null,null,null,null,null,null,null,null,130,10]
[null,null,null,null,null,null,null,null,null,null,null,null,null,null,131,10]
[null,null,null,null,null,null,null,null,null,null,null,null,null,null,132,10]
[null,null,null,null,null,null,null,null,null,null,null,null,null,null,133,10]
[null,null,null,null,null,null,null,null,null,null,null,null,null,null,134,10]
[null,null,null,null,null,null,null,null,null,null,null,null,null,null,135,10]
[null,null,null,null,null,null,null,null,null,null,null,null,null,null,136,10]
[null,null,null,null,null,null,null,null,null,null,null,null,null,null,137,10]
[null,null,null,null,null,null,null,null,null,null,null,null,null,null,138,10]
[null,null,null,null,null,null,null,null,null,null,null,null,null,null,139,10]
[null,null,null,null,null,null,null,null,null,null,null,null,null,null,140,10]
[null,null,null,null,null,null,null,null,null,null,null,null,null,null,141,10]
[null,null,null,null,null,null,null,null,null,null,null,null,null,null,142,10]
[null,null,null,null,null,null,null,null,null,null,null,null,null,null,143,10]
[null,null,null,null,null,null,null,null,null,null,null,null,null,null,144,10]
[null,null,null,null,null,null,null,null,null,null,null,null,null,null,145,10]
[null,null,null,null,null,null,null,null,null,null,null,null,null,null,146,10]
[null,null,null,null,null,null,null,null,null,null,null,null,null,null,147,10]
[null,null,null,null,null,null,null,null,null,null,null,null,null,null,148,10]
[null,null,null,null,null,null,null,null,null,null,null,null,null,null,149,10]
[null,null,null,null,null,null,null,null,null,null,null,null,null,null,150,11]
[null,null,null,null,null,null,null,null,null,null,null,null,null,null,151,11]
[null,null,null,null,null,null,null,null,null,null,null,null,null,null,152,11]
[null,null,null,null,null,null,null,null,null,null,null,null,null,null,153,11]
[null,null,null,null,null,null,null,null,null,null,null,null,null,null,154,11]
[null,null,null,null,null,null,null,null,null,null,null,null,null,null,155,11]
[null,null,null,null,null,null,null,null,null,null,null,null,null,null,156,11]
[null,null,null,null,null,null,null,null,null,null,null,null,null,null,157,11]
[null,null,null,null,null,null,null,null,null,null,null,null,null,null,158,11]
[null,null,null,null,null,null,null,null,null,null,null,null,null,null,159,11]
[null,null,null,null,null,null,null,null,null,null,null,null,null,null,160,11]
[null,null,null,null,null,null,null,null,null,null,null,null,null,null,161,11]
[null,null,null,null,null,null,null,null,null,null,null,null,null,null,162,11]
[null,null,null,null,null,null,null,null,null,null,null,null,null,null,163,11]
[null,null,null,null,null,null,null,null,null,null,null,null,null,null,164,11]
[null,null,null,null,null,null,null,null,null,null,null,null,null,null,165,11]
[null,null,null,null,null,null,null,null,null,null,null,null,null,null,166,11]
[null,null,null,null,null,null,null,null,null,null,null,null,null,null,167,11]
[null,null,null,null,null,null,null,null,null,null,null,null,null,null,168,11]
[null,null,null,null,null,null,null,null,null,null,null,null,null,null,169,11]
[null,null,null,null,null,null,null,null,null,null,null,null,null,null,170,11]
[null,null,null,null,null,null,null,null,null,null,null,null,null,null,171,11]
[null,null,null,null,null,null,null,null,null,null,null,null,null,null,172,11]
[null,null,null,null,null,null,null,null,null,null,null,null,null,null,173,11]
[null,null,null,null,null,null,null,null,null,null,null,null,null,null,174,11]
[null,null,null,null,null,null,null,null,null,null,null,null,null,null,175,11]
[null,null,null,null,null,null,null,null,null,null,null,null,null,null,176,11]
[null,null,null,null,null,null,null,null,null,null,null,null,null,null,177,11]
[null,null,null,null,null,null,null,null,null,null,null,null,null,null,178,11]
[null,null,null,null,null,null,null,null,null,null,null,null,null,null,179,11]
[null,null,null,null,null,null,null,null,null,null,null,null,null,null,180,12]
[null,null,null,null,null,null,null,null,null,null,null,null,null,null,181,12]
[null,null,null,null,null,null,null,null,null,null,null,null,null,null,182,12]
[null,null,null,null,null,null,null,null,null,null,null,null,null,null,183,12]
[null,null,null,null,null,null,null,null,null,null,null,null,null,null,184,12]
[null,null,null,null,null,null,null,null,null,null,null,null,null,null,185,12]
[null,null,null,null,null,null,null,null,null,null,null,null,null,null,186,12]
[null,null,null,null,null,null,null,null,null,null,null,null,null,null,187,12]
[null,null,null,null,null,null,null,null,null,null,null,null,null,null,188,12]
[null,null,null,null,null,null,null,null,null,null,null,null,null,null,189,12]
[null,null,null,null,null,null,null,null,null,null,null,null,null,null,190,12]
[null,null,null,null,null,null,null,null,null,null,null,null,null,null,191,12]
[null,null,null,null,null,null,null,null,null,null,null,null,null,null,192,12]
[null,null,null,null,null,null,null,null,null,null,null,null,null,null,193,12]
[null,null,null,null,null,null,null,null,null,null,null,null,null,null,194,12]
[null,null,null,null,null,null,null,null,null,null,null,null,null,null,195,12]
[null,null,null,null,null,null,null,null,null,null,null,null,null,null,196,12]
[null,null,null,null,null,null,null,null,null,null,null,null,null,null,197,12]
[null,null,null,null,null,null,null,null,null,null,null,null,null,null,198,12]
[null,null,null,null,null,null,null,null,null,null,null,null,null,null,199,12]
[null,null,null,null,null,null,null,null,null,null,null,null,null,null,200,12]
[null,null,null,null,null,null,null,null,null,null,null,null,null,null,201,12]
[null,null,null,null,null,null,null,null,null,null,null,null,null,null,202,12]
[null,null,null,null,null,null,null,null,null,null,null,null,null,null,203,12]
[null,null,null,null,null,null,null,null,null,null,null,null,null,null,204,12]
[null,null,null,null,null,null,null,null,null,null,null,null,null,null,205,12]
[null,null,null,null,null,null,null,null,null,null,null,null,null,null,206,12]
[null,null,null,null,null,null,null,null,null,null,null,null,null,null,207,12]
[null,null,null,null,null,null,null,null,null,null,null,null,null,null,208,12]
[null,null,null,null,null,null,null,null,null,null,null,null,null,null,209,12]
[null,null,null,null,null,null,null,null,null,null,null,null,null,null,210,13]
[null,null,null,null,null,null,null,null,null,null,null,null,null,null,211,13]
[null,null,null,null,null,null,null,null,null,null,null,null,null,null,212,13]
[null,null,null,null,null,null,null,null,null,null,null,null,null,null,213,13]
[null,null,null,null,null,null,null,null,null,null,null,null,null,null,214,13]
[null,null,null,null,null,null,null,null,null,null,null,null,null,null,215,13]
[null,null,null,null,null,null,null,null,null,null,null,null,null,null,216,13]
[null,null,null,null,null,null,null,null,null,null,null,null,null,null,217,13]
[null,null,null,null,null,null,null,null,null,null,null,null,null,null,218,13]
[null,null,null,null,null,null,null,null,null,null,null,null,null,null,219,13]
[null,null,null,null,null,null,null,null,null,null,null,null,null,null,220,13]
[null,null,null,null,null,null,null,null,null,null,null,null,null,null,221,13]
[null,null,null,null,null,null,null,null,null,null,null,null,null,null,222,13]
[null,null,null,null,null,null,null,null,null,null,null,null,null,null,223,13]
[null,null,null,null,null,null,null,null,null,null,null,null,null,null,224,13]
[null,null,null,null,null,null,null,null,null,null,null,null,null,null,225,13]
[null,null,null,null,null,null,null,null,null,null,null,null,null,null,226,13]
[null,null,null,null,null,null,null,null,null,null,null,null,null,null,227,13]
[null,null,null,null,null,null,null,null,null,null,null,null,null,null,228,13]
[null,null,null,null,null,null,null,null,null,null,null,null,null,null,229,13]
[null,null,null,null,null,null,null,null,null,null,null,null,null,null,230,13]
[null,null,null,null,null,null,null,null,null,null,null,null,null,null,231,13]
[null,null,null,null,null,null,null,null,null,null,null,null,null,null,232,13]
[null,null,null,null,null,null,null,null,null,null,null,null,null,null,233,13]
[null,null,null,null,null,null,null,null,null,null,null,null,null,null,234,13]
[null,null,null,null,null,null,null,null,null,null,null,null,null,null,235,13]
[null,null,null,null,null,null,null,null,null,null,null,null,null,null,236,13]
[null,null,null,null,null,null,null,null,null,null,null,null,null,null,237,13]
[null,null,null,null,null,null,null,null,null,null,null,null,null,null,238,13]
[null,null,null,null,null,null,null,null,null,null,null,null,null,null,239,13]
[null,null,null,null,null,null,null,null,null,null,null,null,null,null,240,14]
[null,null,null,null,null,null,null,null,null,null,null,null,null,null,241,14]
[null,null,null,null,null,null,null,null,null,null,null,null,null,null,242,14]
[null,null,null,null,null,null,null,null,null,null,null,null,null,null,243,14]
[null,null,null,null,null,null,null,null,null,null,null,null,null,null,244,14]
[null,null,null,null,null,null,null,null,null,null,null,null,null,null,245,14]
[null,null,null,null,null,null,null,null,null,null,null,null,null,null,246,14]
[null,null,null,null,null,null,null,null,null,null,null,null,null,null,247,14]
[null,null,null,null,null,null,null,null,null,null,null,null,null,null,248,14]
[null,null,null,null,null,null,null,null,null,null,null,null,null,null,249,14]
[null,null,null,null,null,null,null,null,null,null,null,null,null,null,250,14]
[null,null,null,null,null,null,null,null,null,null,null,null,null,null,251,14]
[null,null,null,null,null,null,null,null,null,null,null,null,null,null,252,14]
[null,null,null,null,null,null,null,null,null,null,null,null,null,null,253,14]
[null,null,null,null,null,null,null,null,null,null,null,null,null,null,254,14]
[null,null,null,null,null,null,null,null,null,null,null,null,null,null,255,14]
[null,null,null,null,null,null,null,null,null,null,null,null,null,null,256,14]
[null,null,null,null,null,null,null,null,null,null,null,null,null,null,257,14]
[null,null,null,null,null,null,null,null,null,null,null,null,null,null,258,14]
[null,null,null,null,null,null,null,null,null,null,null,null,null,null,259,14]
[null,null,null,null,null,null,null,null,null,null,null,null,null,null,260,14]
[null,null,null,null,null,null,null,null,null,null,null,null,null,null,261,14]
[null,null,null,null,null,null,null,null,null,null,null,null,null,null,262,14]
[null,null,null,null,null,null,null,null,null,null,null,null,null,null,263,14]
[null,null,null,null,null,null,null,null,null,null,null,null,null,null,264,14]
[null,null,null,null,null,null,null,null,null,null,null,null,null,null,265,14]
[null,null,null,null,null,null,null,null,null,null,null,null,null,null,266,14]
[null,null,null,null,null,null,null,null,null,null,null,null,null,null,267,14]
[null,null,null,null,null,null,null,null,null,null,null,null,null,null,268,14]
[null,null,null,null,null,null,null,null,null,null,null,null,null,null,269,14]
[null,null,null,null,null,null,null,null,null,null,null,null,null,null,270,15]
[null,null,null,null,null,null,null,null,null,null,null,null,null,null,271,15]
[null,null,null,null,null,null,null,null,null,null,null,null,null,null,272,15]
[null,null,null,null,null,null,null,null,null,null,null,null,null,null,273,15]
[null,null,null,null,null,null,null,null,null,null,null,null,null,null,274,15]
[null,null,null,null,null,null,null,null,null,null,null,null,null,null,275,15]
[null,null,null,null,null,null,null,null,null,null,null,null,null,null,276,15]
[null,null,null,null,null,null,null,null,null,null,null,null,null,null,277,15]
[null,null,null,null,null,null,null,null,null,null,null,null,null,null,278,15]
[null,null,null,null,null,null,null,null,null,null,null,null,null,null,279,15]
[null,null,null,null,null,null,null,null,null,null,null,null,null,null,280,15]
[null,null,null,null,null,null,null,null,null,null,null,null,null,null,281,15]
[null,null,null,null,null,null,null,null,null,null,null,null,null,null,282,15]
[null,null,null,null,null,null,null,null,null,null,null,null,null,null,283,15]
[null,null,null,null,null,null,null,null,null,null,null,null,null,null,284,15]
[null,null,null,null,null,null,null,null,null,null,null,null,null,null,285,15]
[null,null,null,null,null,null,null,null,null,null,null,null,null,null,286,15]
[null,null,null,null,null,null,null,null,null,null,null,null,null,null,287,15]
[null,null,null,null,null,null,null,null,null,null,null,null,null,null,288,15]
[null,null,null,null,null,null,null,null,null,null,null,null,null,null,289,15]
[null,null,null,null,null,null,null,null,null,null,null,null,null,null,290,15]
[null,null,null,null,null,null,null,null,null,null,null,null,null,null,291,15]
[null,null,null,null,null,null,null,null,null,null,null,null,null,null,292,15]
[null,null,null,null,null,null,null,null,null,null,null,null,null,null,293,15]
[null,null,null,null,null,null,null,null,null,null,null,null,null,null,294,15]
[null,null,null,null,null,null,null,null,null,null,null,null,null,null,295,15]
[null,null,null,null,null,null,null,null,null,null,null,null,null,null,296,15]
[null,null,null,null,null,null,null,null,null,null,null,null,null,null,297,15]
[null,null,null,null,null,null,null,null,null,null,null,null,null,null,298,15]
[null,null,null,null,null,null,null,null,null,null,null,null,null,null,299,15]
[null,null,null,null,null,null,null,null,null,null,null,null,null,null,300,16]
[null,null,null,null,null,null,null,null,null,null,null,null,null,null,301,16]
[null,null,null,null,null,null,null,null,null,null,null,null,null,null,302,16]
[null,null,null,null,null,null,null,null,null,null,null,null,null,null,303,16]
[null,null,null,null,null,null,null,null,null,null,null,null,null,null,304,16]
[null,null,null,null,null,null,null,null,null,null,null,null,null,null,305,16]
[null,null,null,null,null,null,null,null,null,null,null,null,null,null,306,16]
[null,null,null,null,null,null,null,null,null,null,null,null,null,null,307,16]
[null,null,null,null,null,null,null,null,null,null,null,null,null,null,308,16]
[null,null,null,null,null,null,null,null,null,null,null,null,null,null,309,16]
[null,null,null,null,null,null,null,null,null,null,null,null,null,null,310,16]
[null,null,null,null,null,null,null,null,null,null,null,null,null,null,311,16]
[null,null,null,null,null,null,null,null,null,null,null,null,null,null,312,16]
[null,null,null,null,null,null,null,null,null,null,null,null,null,null,313,16]
[null,null,null,null,null,null,null,null,null,null,null,null,null,null,314,16]
[null,null,null,null,null,null,null,null,null,null,null,null,null,null,315,16]
[null,null,null,null,null,null,null,null,null,null,null,null,null,null,316,16]
[null,null,null,null,null,null,null,null,null,null,null,null,null,null,317,16]
[null,null,null,null,null,null,null,null,null,null,null,null,null,null,318,16]
[null,null,null,null,null,null,null,null,null,null,null,null,null,null,319,16]
[null,null,null,null,null,null,null,null,null,null,null,null,null,null,320,16]
[null,null,null,null,null,null,null,null,null,null,null,null,null,null,321,16]
[null,null,null,null,null,null,null,null,null,null,null,null,null,null,322,16]
[null,null,null,null,null,null,null,null,null,null,null,null,null,null,323,16]
[null,null,null,null,null,null,null,null,null,null,null,null,null,null,324,16]
[null,null,null,null,null,null,null,null,null,null,null,null,null,null,325,16]
[null,null,null,null,null,null,null,null,null,null,null,null,null,null,326,16]
[null,null,null,null,null,null,null,null,null,null,null,null,null,null,327,16]
[null,null,null,null,null,null,null,null,null,null,null,null,null,null,328,16]
[null,null,null,null,null,null,null,null,null,null,null,null,null,null,329,16]
[null,null,null,null,null,null,null,null,null,null,null,null,null,null,330,17]
[null,null,null,null,null,null,null,null,null,null,null,null,null,null,331,17]
[null,null,null,null,null,null,null,null,null,null,null,null,null,null,332,17]
[null,null,null,null,null,null,null,null,null,null,null,null,null,null,333,17]
[null,null,null,null,null,null,null,null,null,null,null,null,null,null,334,17]
[null,null,null,null,null,null,null,null,null,null,null,null,null,null,335,17]
[null,null,null,null,null,null,null,null,null,null,null,null,null,null,336,17]
[null,null,null,null,null,null,null,null,null,null,null,null,null,null,337,17]
[null,null,null,null,null,null,null,null,null,null,null,null,null,null,338,17]
[null,null,null,null,null,null,null,null,null,null,null,null,null,null,339,17]
[null,null,null,null,null,null,null,null,null,null,null,null,null,null,340,17]
[null,null,null,null,null,null,null,null,null,null,null,null,null,null,341,17]
[null,null,null,null,null,null,null,null,null,null,null,null,null,null,342,17]
[null,null,null,null,null,null,null,null,null,null,null,null,null,null,343,17]
[null,null,null,null,null,null,null,null,null,null,null,null,null,null,344,17]
[null,null,null,null,null,null,null,null,null,null,null,null,null,null,345,17]
[null,null,null,null,null,null,null,null,null,null,null,null,null,null,346,17]
[null,null,null,null,null,null,null,null,null,null,null,null,null,null,347,17]
[null,null,null,null,null,null,null,null,null,null,null,null,null,null,348,17]
[null,null,null,null,null,null,null,null,null,null,null,null,null,null,349,17]
[null,null,null,null,null,null,null,null,null,null,null,null,null,null,350,17]
[null,null,null,null,null,null,null,null,null,null,null,null,null,null,351,17]
[null,null,null,null,null,null,null,null,null,null,null,null,null,null,352,17]
[null,null,null,null,null,null,null,null,null,null,null,null,null,null,353,17]
[null,null,null,null,null,null,null,null,null,null,null,null,null,null,354,17]
[null,null,null,null,null,null,null,null,null,null,null,null,null,null,355,17]
[null,null,null,null,null,null,null,null,null,null,null,null,null,null,356,17]
[null,null,null,null,null,null,null,null,null,null,null,null,null,null,357,17]
[null,null,null,null,null,null,null,null,null,null,null,null,null,null,358,17]
[null,null,null,null,null,null,null,null,null,null,null,null,null,null,359,17]
[null,null,null,null,null,null,null,null,null,null,null,null,null,null,360,18]
[null,null,null,null,null,null,null,null,null,null,null,null,null,null,361,18]
[null,null,null,null,null,null,null,null,null,null,null,null,null,null,362,18]
[null,null,null,null,null,null,null,null,null,null,null,null,null,null,363,18]
[null,null,null,null,null,null,null,null,null,null,null,null,null,null,364,18]
[null,null,null,null,null,null,null,null,null,null,null,null,null,null,365,18]
[null,null,null,null,null,null,null,null,null,null,null,null,null,null,366,18]
[null,null,null,null,null,null,null,null,null,null,null,null,null,null,367,18]
[null,null,null,null,null,null,null,null,null,null,null,null,null,null,368,18]
[null,null,null,null,null,null,null,null,null,null,null,null,null,null,369,18]
[null,null,null,null,null,null,null,null,null,null,null,null,null,null,370,18]
[null,null,null,null,null,null,null,null,null,null,null,null,null,null,371,18]
[null,null,null,null,null,null,null,null,null,null,null,null,null,null,372,18]
[null,null,null,null,null,null,null,null,null,null,null,null,null,null,373,18]
[null,null,null,null,null,null,null,null,null,null,null,null,null,null,374,18]
[null,null,null,null,null,null,null,null,null,null,null,null,null,null,375,18]
[null,null,null,null,null,null,null,null,null,null,null,null,null,null,376,18]
[null,null,null,null,null,null,null,null,null,null,null,null,null,null,377,18]
[null,null,null,null,null,null,null,null,null,null,null,null,null,null,378,18]
[null,null,null,null,null,null,null,null,null,null,null,null,null,null,379,18]
[null,null,null,null,null,null,null,null,null,null,null,null,null,null,380,18]
[null,null,null,null,null,null,null,null,null,null,null,null,null,null,381,18]
[null,null,null,null,null,null,null,null,null,null,null,null,null,null,382,18]
[null,null,null,null,null,null,null,null,null,null,null,null,null,null,383,18]
[null,null,null,null,null,null,null,null,null,null,null,null,null,null,384,18]
[null,null,null,null,null,null,null,null,null,null,null,null,null,null,385,18]
[null,null,null,null,null,null,null,null,null,null,null,null,null,null,386,18]
[null,null,null,null,null,null,null,null,null,null,null,null,null,null,387,18]
[null,null,null,null,null,null,null,null,null,null,null,null,null,null,388,18]
[null,null,null,null,null,null,null,null,null,null,null,null,null,null,389,18]
[null,null,null,null,null,null,null,null,null,null,null,null,null,null,390,19]
[null,null,null,null,null,null,null,null,null,null,null,null,null,null,391,19]
[null,null,null,null,null,null,null,null,null,null,null,null,null,null,392,19]
[null,null,null,null,null,null,null,null,null,null,null,null,null,null,393,19]
[null,null,null,null,null,null,null,null,null,null,null,null,null,null,394,19]
[null,null,null,null,null,null,null,null,null,null,null,null,null,null,395,19]
[null,null,null,null,null,null,null,null,null,null,null,null,null,null,396,19]
[null,null,null,null,null,null,null,null,null,null,null,null,null,null,397,19]
[null,null,null,null,null,null,null,null,null,null,null,null,null,null,398,19]
[null,null,null,null,null,null,null,null,null,null,null,null,null,null,399,19]
[null,null,null,null,null,null,null,null,null,null,null,null,null,null,400,19]
[null,null,null,null,null,null,null,null,null,null,null,null,null,null,401,19]
[null,null,null,null,null,null,null,null,null,null,null,null,null,null,402,19]
[null,null,null,null,null,null,null,null,null,null,null,null,null,null,403,19]
[null,null,null,null,null,null,null,null,null,null,null,null,null,null,404,19]
[null,null,null,null,null,null,null,null,null,null,null,null,null,null,405,19]
[null,null,null,null,null,null,null,null,null,null,null,null,null,null,406,19]
[null,null,null,null,null,null,null,null,null,null,null,null,null,null,407,19]
[null,null,null,null,null,null,null,null,null,null,null,null,null,null,408,19]
[null,null,null,null,null,null,null,null,null,null,null,null,null,null,409,19]
[null,null,null,null,null,null,null,null,null,null,null,null,null,null,410,19]
[null,null,null,null,null,null,null,null,null,null,null,null,null,null,411,19]
[null,null,null,null,null,null,null,null,null,null,null,null,null,null,412,19]
[null,null,null,null,null,null,null,null,null,null,null,null,null,null,413,19]
[null,null,null,null,null,null,null,null,null,null,null,null,null,null,414,19]
[null,null,null,null,null,null,null,null,null,null,null,null,null,null,415,19]
[null,null,null,null,null,null,null,null,null,null,null,null,null,null,416,19]
[null,null,null,null,null,null,null,null,null,null,null,null,null,null,417,19]
[null,null,null,null,null,null,null,null,null,null,null,null,null,null,418,19]
[null,null,null,null,null,null,null,null,null,null,null,null,null,null,419,19]
[null,null,null,null,null,null,null,null,null,null,null,null,null,null,420,20]
[null,null,null,null,null,null,null,null,null,null,null,null,null,null,421,20]
[null,null,null,null,null,null,null,null,null,null,null,null,null,null,422,20]
[null,null,null,null,null,null,null,null,null,null,null,null,null,null,423,20]
[null,null,null,null,null,null,null,null,null,null,null,null,null,null,424,20]
[null,null,null,null,null,null,null,null,null,null,null,null,null,null,425,20]
[null,null,null,null,null,null,null,null,null,null,null,null,null,null,426,20]
[null,null,null,null,null,null,null,null,null,null,null,null,null,null,427,20]
[null,null,null,null,null,null,null,null,null,null,null,null,null,null,428,20]
[null,null,null,null,null,null,null,null,null,null,null,null,null,null,429,20]
[null,null,null,null,null,null,null,null,null,null,null,null,null,null,430,20]
[null,null,null,null,null,null,null,null,null,null,null,null,null,null,431,20]
[null,null,null,null,null,null,null,null,null,null,null,null,null,null,432,20]
[null,null,null,null,null,null,null,null,null,null,null,null,null,null,433,20]
[null,null,null,null,null,null,null,null,null,null,null,null,null,null,434,20]
[null,null,null,null,null,null,null,null,null,null,null,null,null,null,435,20]
[null,null,null,null,null,null,null,null,null,null,null,null,null,null,436,20]
[null,null,null,null,null,null,null,null,null,null,null,null,null,null,437,20]
[null,null,null,null,null,null,null,null,null,null,null,null,null,null,438,20]
[null,null,null,null,null,null,null,null,null,null,null,null,null,null,439,20]
[null,null,null,null,null,null,null,null,null,null,null,null,null,null,440,20]
[null,null,null,null,null,null,null,null,null,null,null,null,null,null,441,20]
[null,null,null,null,null,null,null,null,null,null,null,null,null,null,442,20]
[null,null,null,null,null,null,null,null,null,null,null,null,null,null,443,20]
[null,null,null,null,null,null,null,null,null,null,null,null,null,null,444,20]
[null,null,null,null,null,null,null,null,null,null,null,null,null,null,445,20]
[null,null,null,null,null,null,null,null,null,null,null,null,null,null,446,20]
[null,null,null,null,null,null,null,null,null,null,null,null,null,null,447,20]
[null,null,null,null,null,null,null,null,null,null,null,null,null,null,448,20]
[null,null,null,null,null,null,null,null,null,null,null,null,null,null,449,20]
[null,null,null,null,null,null,null,null,null,null,null,null,null,null,450,21]
[null,null,null,null,null,null,null,null,null,null,null,null,null,null,451,21]
[null,null,null,null,null,null,null,null,null,null,null,null,null,null,452,21]
[null,null,null,null,null,null,null,null,null,null,null,null,null,null,453,21]
[null,null,null,null,null,null,null,null,null,null,null,null,null,null,454,21]
[null,null,null,null,null,null,null,null,null,null,null,null,null,null,455,21]
[null,null,null,null,null,null,null,null,null,null,null,null,null,null,456,21]
[null,null,null,null,null,null,null,null,null,null,null,null,null,null,457,21]
[null,null,null,null,null,null,null,null,null,null,null,null,null,null,458,21]
[null,null,null,null,null,null,null,null,null,null,null,null,null,null,459,21]
[null,null,null,null,null,null,null,null,null,null,null,null,null,null,460,21]
[null,null,null,null,null,null,null,null,null,null,null,null,null,null,461,21]
[null,null,null,null,null,null,null,null,null,null,null,null,null,null,462,21]
[null,null,null,null,null,null,null,null,null,null,null,null,null,null,463,21]
[null,null,null,null,null,null,null,null,null,null,null,null,null,null,464,21]
[null,null,null,null,null,null,null,null,null,null,null,null,null,null,465,21]
[null,null,null,null,null,null,null,null,null,null,null,null,null,null,466,21]
[null,null,null,null,null,null,null,null,null,null,null,null,null,null,467,21]
[null,null,null,null,null,null,null,null,null,null,null,null,null,null,468,21]
[null,null,null,null,null,null,null,null,null,null,null,null,null,null,469,21]
[null,null,null,null,null,null,null,null,null,null,null,null,null,null,470,21]
[null,null,null,null,null,null,null,null,null,null,null,null,null,null,471,21]
[null,null,null,null,null,null,null,null,null,null,null,null,null,null,472,21]
[null,null,null,null,null,null,null,null,null,null,null,null,null,null,473,21]
[null,null,null,null,null,null,null,null,null,null,null,null,null,null,474,21]
[null,null,null,null,null,null,null,null,null,null,null,null,null,null,475,21]
[null,null,null,null,null,null,null,null,null,null,null,null,null,null,476,21]
[null,null,null,null,null,null,null,null,null,null,null,null,null,null,477,21]
[null,null,null,null,null,null,null,null,null,null,null,null,null,null,478,21]
[null,null,null,null,null,null,null,null,null,null,null,null,null,null,479,21]
[null,null,null,null,null,null,null,null,null,null,null,null,null,null,480,22]
[null,null,null,null,null,null,null,null,null,null,null,null,null,null,481,22]
[null,null,null,null,null,null,null,null,null,null,null,null,null,null,482,22]
[null,null,null,null,null,null,null,null,null,null,null,null,null,null,483,22]
[null,null,null,null,null,null,null,null,null,null,null,null,null,null,484,22]
[null,null,null,null,null,null,null,null,null,null,null,null,null,null,485,22]
[null,null,null,null,null,null,null,null,null,null,null,null,null,null,486,22]
[null,null,null,null,null,null,null,null,null,null,null,null,null,null,487,22]
[null,null,null,null,null,null,null,null,null,null,null,null,null,null,488,22]
[null,null,null,null,null,null,null,null,null,null,null,null,null,null,489,22]
[null,null,null,null,null,null,null,null,null,null,null,null,null,null,490,22]
[null,null,null,null,null,null,null,null,null,null,null,null,null,null,491,22]
[null,null,null,null,null,null,null,null,null,null,null,null,null,null,492,22]
[null,null,null,null,null,null,null,null,null,null,null,null,null,null,493,22]
[null,null,null,null,null,null,null,null,null,null,null,null,null,null,494,22]
[null,null,null,null,null,null,null,null,null,null,null,null,null,null,495,22]
[null,null,null,null,null,null,null,null,null,null,null,null,null,null,496,22]
[null,null,null,null,null,null,null,null,null,null,null,null,null,null,497,22]
[null,null,null,null,null,null,null,null,null,null,null,null,null,null,498,22]
[null,null,null,null,null,null,null,null,null,null,null,null,null,null,499,22]
[null,null,null,null,null,null,null,null,null,null,null,null,null,null,500,22]
[null,null,null,null,null,null,null,null,null,null,null,null,null,null,501,22]
[null,null,null,null,null,null,null,null,null,null,null,null,null,null,502,22]
[null,null,null,null,null,null,null,null,null,null,null,null,null,null,503,22]
[null,null,null,null,null,null,null,null,null,null,null,null,null,null,504,22]
[null,null,null,null,null,null,null,null,null,null,null,null,null,null,505,22]
[null,null,null,null,null,null,null,null,null,null,null,null,null,null,506,22]
[null,null,null,null,null,null,null,null,null,null,null,null,null,null,507,22]
[null,null,null,null,null,null,null,null,null,null,null,null,null,null,508,22]
[null,null,null,null,null,null,null,null,null,null,null,null,null,null,509,22]
[null,null,null,null,null,null,null,null,null,null,null,null,null,null,510,23]
[null,null,null,null,null,null,null,null,null,null,null,null,null,null,511,23]
[null,null,null,null,null,null,null,null,null,null,null,null,null,null,512,23]
[null,null,null,null,null,null,null,null,null,null,null,null,null,null,513,23]
[null,null,null,null,null,null,null,null,null,null,null,null,null,null,514,23]
[null,null,null,null,null,null,null,null,null,null,null,null,null,null,515,23]
[null,null,null,null,null,null,null,null,null,null,null,null,null,null,516,23]
[null,null,null,null,null,null,null,null,null,null,null,null,null,null,517,23]
[null,null,null,null,null,null,null,null,null,null,null,null,null,null,518,23]
[null,null,null,null,null,null,null,null,null,null,null,null,null,null,519,23]
[null,null,null,null,null,null,null,null,null,null,null,null,null,null,520,23]
[null,null,null,null,null,null,null,null,null,null,null,null,null,null,521,23]
[null,null,null,null,null,null,null,null,null,null,null,null,null,null,522,23]
[null,null,null,null,null,null,null,null,null,null,null,null,null,null,523,23]
[null,null,null,null,null,null,null,null,null,null,null,null,null,null,524,23]
[null,null,null,null,null,null,null,null,null,null,null,null,null,null,525,23]
[null,null,null,null,null,null,null,null,null,null,null,null,null,null,526,23]
[null,null,null,null,null,null,null,null,null,null,null,null,null,null,527,23]
[null,null,null,null,null,null,null,null,null,null,null,null,null,null,528,23]
[null,null,null,null,null,null,null,null,null,null,null,null,null,null,529,23]
[null,null,null,null,null,null,null,null,null,null,null,null,null,null,530,23]
[null,null,null,null,null,null,null,null,null,null,null,null,null,null,531,23]
[null,null,null,null,null,null,null,null,null,null,null,null,null,null,532,23]
[null,null,null,null,null,null,null,null,null,null,null,null,null,null,533,23]
[null,null,null,null,null,null,null,null,null,null,null,null,null,null,534,23]
[null,null,null,null,null,null,null,null,null,null,null,null,null,null,535,23]
[null,null,null,null,null,null,null,null,null,null,null,null,null,null,536,23]
[null,null,null,null,null,null,null,null,null,null,null,null,null,null,537,23]
[null,null,null,null,null,null,null,null,null,null,null,null,null,null,538,23]
[null,null,null,null,null,null,null,null,null,null,null,null,null,null,539,23]
[null,null,null,null,null,null,null,null,null,null,null,null,null,null,540,24]
[null,null,null,null,null,null,null,null,null,null,null,null,null,null,541,24]
[null,null,null,null,null,null,null,null,null,null,null,null,null,null,542,24]
[null,null,null,null,null,null,null,null,null,null,null,null,null,null,543,24]
[null,null,null,null,null,null,null,null,null,null,null,null,null,null,544,24]
[null,null,null,null,null,null,null,null,null,null,null,null,null,null,545,24]
[null,null,null,null,null,null,null,null,null,null,null,null,null,null,546,24]
[null,null,null,null,null,null,null,null,null,null,null,null,null,null,547,24]
[null,null,null,null,null,null,null,null,null,null,null,null,null,null,548,24]
[null,null,null,null,null,null,null,null,null,null,null,null,null,null,549,24]
[null,null,null,null,null,null,null,null,null,null,null,null,null,null,550,24]
[null,null,null,null,null,null,null,null,null,null,null,null,null,null,551,24]
[null,null,null,null,null,null,null,null,null,null,null,null,null,null,552,24]
[null,null,null,null,null,null,null,null,null,null,null,null,null,null,553,24]
[null,null,null,null,null,null,null,null,null,null,null,null,null,null,554,24]
[null,null,null,null,null,null,null,null,null,null,null,null,null,null,555,24]
[null,null,null,null,null,null,null,null,null,null,null,null,null,null,556,24]
[null,null,null,null,null,null,null,null,null,null,null,null,null,null,557,24]
[null,null,null,null,null,null,null,null,null,null,null,null,null,null,558,24]
[null,null,null,null,null,null,null,null,null,null,null,null,null,null,559,24]
[null,null,null,null,null,null,null,null,null,null,null,null,null,null,560,24]
[null,null,null,null,null,null,null,null,null,null,null,null,null,null,561,24]
[null,null,null,null,null,null,null,null,null,null,null,null,null,null,562,24]
[null,null,null,null,null,null,null,null,null,null,null,null,null,null,563,24]
[null,null,null,null,null,null,null,null,null,null,null,null,null,null,564,24]
[null,null,null,null,null,null,null,null,null,null,null,null,null,null,565,24]
[null,null,null,null,null,null,null,null,null,null,null,null,null,null,566,24]
[null,null,null,null,null,null,null,null,null,null,null,null,null,null,567,24]
[null,null,null,null,null,null,null,null,null,null,null,null,null,null,568,24]
[null,null,null,null,null,null,null,null,null,null,null,null,null,null,569,24]
[null,null,null,null,null,null,null,null,null,null,null,null,null,null,570,25]
[null,null,null,null,null,null,null,null,null,null,null,null,null,null,571,25]
[null,null,null,null,null,null,null,null,null,null,null,null,null,null,572,25]
[null,null,null,null,null,null,null,null,null,null,null,null,null,null,573,25]
[null,null,null,null,null,null,null,null,null,null,null,null,null,null,574,25]
[null,null,null,null,null,null,null,null,null,null,null,null,null,null,575,25]
[null,null,null,null,null,null,null,null,null,null,null,null,null,null,576,25]
[null,null,null,null,null,null,null,null,null,null,null,null,null,null,577,25]
[null,null,null,null,null,null,null,null,null,null,null,null,null,null,578,25]
[null,null,null,null,null,null,null,null,null,null,null,null,null,null,579,25]
[null,null,null,null,null,null,null,null,null,null,null,null,null,null,580,25]
[null,null,null,null,null,null,null,null,null,null,null,null,null,null,581,25]
[null,null,null,null,null,null,null,null,null,null,null,null,null,null,582,25]
[null,null,null,null,null,null,null,null,null,null,null,null,null,null,583,25]
[null,null,null,null,null,null,null,null,null,null,null,null,null,null,584,25]
[null,null,null,null,null,null,null,null,null,null,null,null,null,null,585,25]
[null,null,null,null,null,null,null,null,null,null,null,null,null,null,586,25]
[null,null,null,null,null,null,null,null,null,null,null,null,null,null,587,25]
[null,null,null,null,null,null,null,null,null,null,null,null,null,null,588,25]
[null,null,null,null,null,null,null,null,null,null,null,null,null,null,589,25]
[null,null,null,null,null,null,null,null,null,null,null,null,null,null,590,25]
[null,null,null,null,null,null,null,null,null,null,null,null,null,null,591,25]
[null,null,null,null,null,null,null,null,null,null,null,null,null,null,592,25]
[null,null,null,null,null,null,null,null,null,null,null,null,null,null,593,25]
[null,null,null,null,null,null,null,null,null,null,null,null,null,null,594,25]
[null,null,null,null,null,null,null,null,null,null,null,null,null,null,595,25]
[null,null,null,null,null,null,null,null,null,null,null,null,null,null,596,25]
[null,null,null,null,null,null,null,null,null,null,null,null,null,null,597,25]
[null,null,null,null,null,null,null,null,null,null,null,null,null,null,598,25]
[null,null,null,null,null,null,null,null,null,null,null,null,null,null,599,25]
[null,null,null,null,null,null,null,null,null,null,null,null,null,null,600,26]
[null,null,null,null,null,null,null,null,null,null,null,null,null,null,601,26]
[null,null,null,null,null,null,null,null,null,null,null,null,null,null,602,26]
[null,null,null,null,null,null,null,null,null,null,null,null,null,null,603,26]
[null,null,null,null,null,null,null,null,null,null,null,null,null,null,604,26]
[null,null,null,null,null,null,null,null,null,null,null,null,null,null,605,26]
[null,null,null,null,null,null,null,null,null,null,null,null,null,null,606,26]
[null,null,null,null,null,null,null,null,null,null,null,null,null,null,607,26]
[null,null,null,null,null,null,null,null,null,null,null,null,null,null,608,26]
[null,null,null,null,null,null,null,null,null,null,null,null,null,null,609,26]
[null,null,null,null,null,null,null,null,null,null,null,null,null,null,610,26]
[null,null,null,null,null,null,null,null,null,null,null,null,null,null,611,26]
[null,null,null,null,null,null,null,null,null,null,null,null,null,null,612,26]
[null,null,null,null,null,null,null,null,null,null,null,null,null,null,613,26]
[null,null,null,null,null,null,null,null,null,null,null,null,null,null,614,26]
[null,null,null,null,null,null,null,null,null,null,null,null,null,null,615,26]
[null,null,null,null,null,null,null,null,null,null,null,null,null,null,616,26]
[null,null,null,null,null,null,null,null,null,null,null,null,null,null,617,26]
[null,null,null,null,null,null,null,null,null,null,null,null,null,null,618,26]
[null,null,null,null,null,null,null,null,null,null,null,null,null,null,619,26]
[null,null,null,null,null,null,null,null,null,null,null,null,null,null,620,26]
[null,null,null,null,null,null,null,null,null,null,null,null,null,null,621,26]
[null,null,null,null,null,null,null,null,null,null,null,null,null,null,622,26]
[null,null,null,null,null,null,null,null,null,null,null,null,null,null,623,26]
[null,null,null,null,null,null,null,null,null,null,null,null,null,null,624,26]
[null,null,null,null,null,null,null,null,null,null,null,null,null,null,625,26]
[null,null,null,null,null,null,null,null,null,null,null,null,null,null,626,26]
[null,null,null,null,null,null,null,null,null,null,null,null,null,null,627,26]
[null,null,null,null,null,null,null,null,null,null,null,null,null,null,628,26]
[null,null,null,null,null,null,null,null,null,null,null,null,null,null,629,26]
[null,null,null,null,null,null,null,null,null,null,null,null,null,null,630,27]
[null,null,null,null,null,null,null,null,null,null,null,null,null,null,631,27]
[null,null,null,null,null,null,null,null,null,null,null,null,null,null,632,27]
[null,null,null,null,null,null,null,null,null,null,null,null,null,null,633,27]
[null,null,null,null,null,null,null,null,null,null,null,null,null,null,634,27]
[null,null,null,null,null,null,null,null,null,null,null,null,null,null,635,27]
[null,null,null,null,null,null,null,null,null,null,null,null,null,null,636,27]
[null,null,null,null,null,null,null,null,null,null,null,null,null,null,637,27]
[null,null,null,null,null,null,null,null,null,null,null,null,null,null,638,27]
[null,null,null,null,null,null,null,null,null,null,null,null,null,null,639,27]
[null,null,null,null,null,null,null,null,null,null,null,null,null,null,640,27]
[null,null,null,null,null,null,null,null,null,null,null,null,null,null,641,27]
[null,null,null,null,null,null,null,null,null,null,null,null,null,null,642,27]
[null,null,null,null,null,null,null,null,null,null,null,null,null,null,643,27]
[null,null,null,null,null,null,null,null,null,null,null,null,null,null,644,27]
[null,null,null,null,null,null,null,null,null,null,null,null,null,null,645,27]
[null,null,null,null,null,null,null,null,null,null,null,null,null,null,646,27]
[null,null,null,null,null,null,null,null,null,null,null,null,null,null,647,27]
[null,null,null,null,null,null,null,null,null,null,null,null,null,null,648,27]
[null,null,null,null,null,null,null,null,null,null,null,null,null,null,649,27]
[null,null,null,null,null,null,null,null,null,null,null,null,null,null,650,27]
[null,null,null,null,null,null,null,null,null,null,null,null,null,null,651,27]
[null,null,null,null,null,null,null,null,null,null,null,null,null,null,652,27]
[null,null,null,null,null,null,null,null,null,null,null,null,null,null,653,27]
[null,null,null,null,null,null,null,null,null,null,null,null,null,null,654,27]
[null,null,null,null,null,null,null,null,null,null,null,null,null,null,655,27]
[null,null,null,null,null,null,null,null,null,null,null,null,null,null,656,27]
[null,null,null,null,null,null,null,null,null,null,null,null,null,null,657,27]
[null,null,null,null,null,null,null,null,null,null,null,null,null,null,658,27]
[null,null,null,null,null,null,null,null,null,null,null,null,null,null,659,27]
[null,null,null,null,null,null,null,null,null,null,null,null,null,null,660,28]
[null,null,null,null,null,null,null,null,null,null,null,null,null,null,661,28]
[null,null,null,null,null,null,null,null,null,null,null,null,null,null,662,28]
[null,null,null,null,null,null,null,null,null,null,null,null,null,null,663,28]
[null,null,null,null,null,null,null,null,null,null,null,null,null,null,664,28]
[null,null,null,null,null,null,null,null,null,null,null,null,null,null,665,28]
[null,null,null,null,null,null,null,null,null,null,null,null,null,null,666,28]
[null,null,null,null,null,null,null,null,null,null,null,null,null,null,667,28]
[null,null,null,null,null,null,null,null,null,null,null,null,null,null,668,28]
[null,null,null,null,null,null,null,null,null,null,null,null,null,null,669,28]
[null,null,null,null,null,null,null,null,null,null,null,null,null,null,670,28]
[null,null,null,null,null,null,null,null,null,null,null,null,null,null,671,28]
[null,null,null,null,null,null,null,null,null,null,null,null,null,null,672,28]
[null,null,null,null,null,null,null,null,null,null,null,null,null,null,673,28]
[null,null,null,null,null,null,null,null,null,null,null,null,null,null,674,28]
[null,null,null,null,null,null,null,null,null,null,null,null,null,null,675,28]
[null,null,null,null,null,null,null,null,null,null,null,null,null,null,676,28]
[null,null,null,null,null,null,null,null,null,null,null,null,null,null,677,28]
[null,null,null,null,null,null,null,null,null,null,null,null,null,null,678,28]
[null,null,null,null,null,null,null,null,null,null,null,null,null,null,679,28]
[null,null,null,null,null,null,null,null,null,null,null,null,null,null,680,28]
[null,null,null,null,null,null,null,null,null,null,null,null,null,null,681,28]
[null,null,null,null,null,null,null,null,null,null,null,null,null,null,682,28]
[null,null,null,null,null,null,null,null,null,null,null,null,null,null,683,28]
[null,null,null,null,null,null,null,null,null,null,null,null,null,null,684,28]
[null,null,null,null,null,null,null,null,null,null,null,null,null,null,685,28]
[null,null,null,null,null,null,null,null,null,null,null,null,null,null,686,28]
[null,null,null,null,null,null,null,null,null,null,null,null,null,null,687,28]
[null,null,null,null,null,null,null,null,null,null,null,null,null,null,688,28]
[null,null,null,null,null,null,null,null,null,null,null,null,null,null,689,28]
[null,null,null,null,null,null,null,null,null,null,null,null,null,null,690,29]
[null,null,null,null,null,null,null,null,null,null,null,null,null,null,691,29]
[null,null,null,null,null,null,null,null,null,null,null,null,null,null,692,29]
[null,null,null,null,null,null,null,null,null,null,null,null,null,null,693,29]
[null,null,null,null,null,null,null,null,null,null,null,null,null,null,694,29]
[null,null,null,null,null,null,null,null,null,null,null,null,null,null,695,29]
[null,null,null,null,null,null,null,null,null,null,null,null,null,null,696,29]
[null,null,null,null,null,null,null,null,null,null,null,null,null,null,697,29]
[null,null,null,null,null,null,null,null,null,null,null,null,null,null,698,29]
[null,null,null,null,null,null,null,null,null,null,null,null,null,null,699,29]
[null,null,null,null,null,null,null,null,null,null,null,null,null,null,700,29]
[null,null,null,null,null,null,null,null,null,null,null,null,null,null,701,29]
[null,null,null,null,null,null,null,null,null,null,null,null,null,null,702,29]
[null,null,null,null,null,null,null,null,null,null,null,null,null,null,703,29]
[null,null,null,null,null,null,null,null,null,null,null,null,null,null,704,29]
[null,null,null,null,null,null,null,null,null,null,null,null,null,null,705,29]
[null,null,null,null,null,null,null,null,null,null,null,null,null,null,706,29]
[null,null,null,null,null,null,null,null,null,null,null,null,null,null,707,29]
[null,null,null,null,null,null,null,null,null,null,null,null,null,null,708,29]
[null,null,null,null,null,null,null,null,null,null,null,null,null,null,709,29]
[null,null,null,null,null,null,null,null,null,null,null,null,null,null,710,29]
[null,null,null,null,null,null,null,null,null,null,null,null,null,null,711,29]
[null,null,null,null,null,null,null,null,null,null,null,null,null,null,712,29]
[null,null,null,null,null,null,null,null,null,null,null,null,null,null,713,29]
[null,null,null,null,null,null,null,null,null,null,null,null,null,null,714,29]
[null,null,null,null,null,null,null,null,null,null,null,null,null,null,715,29]
[null,null,null,null,null,null,null,null,null,null,null,null,null,null,716,29]
[null,null,null,null,null,null,null,null,null,null,null,null,null,null,717,29]
[null,null,null,null,null,null,null,null,null,null,null,null,null,null,718,29]
[null,null,null,null,null,null,null,null,null,null,null,null,null,null,719,29]
[null,null,null,null,null,null,null,null,null,null,null,null,null,null,720,30]
[null,null,null,null,null,null,null,null,null,null,null,null,null,null,721,30]
[null,null,null,null,null,null,null,null,null,null,null,null,null,null,722,30]
[null,null,null,null,null,null,null,null,null,null,null,null,null,null,723,30]
[null,null,null,null,null,null,null,null,null,null,null,null,null,null,724,30]
[null,null,null,null,null,null,null,null,null,null,null,null,null,null,725,30]
[null,null,null,null,null,null,null,null,null,null,null,null,null,null,726,30]
[null,null,null,null,null,null,null,null,null,null,null,null,null,null,727,30]
[null,null,null,null,null,null,null,null,null,null,null,null,null,null,728,30]
[null,null,null,null,null,null,null,null,null,null,null,null,null,null,729,30]
[null,null,null,null,null,null,null,null,null,null,null,null,null,null,730,30]
[null,null,null,null,null,null,null,null,null,null,null,null,null,null,731,30]
[null,null,null,null,null,null,null,null,null,null,null,null,null,null,732,30]
[null,null,null,null,null,null,null,null,null,null,null,null,null,null,733,30]
[null,null,null,null,null,null,null,null,null,null,null,null,null,null,734,30]
[null,null,null,null,null,null,null,null,null,null,null,null,null,null,735,30]
[null,null,null,null,null,null,null,null,null,null,null,null,null,null,736,30]
[null,null,null,null,null,null,null,null,null,null,null,null,null,null,737,30]
[null,null,null,null,null,null,null,null,null,null,null,null,null,null,738,30]
[null,null,null,null,null,null,null,null,null,null,null,null,null,null,739,30]
[null,null,null,null,null,null,null,null,null,null,null,null,null,null,740,30]
[null,null,null,null,null,null,null,null,null,null,null,null,null,null,741,30]
[null,null,null,null,null,null,null,null,null,null,null,null,null,null,742,30]
[null,null,null,null,null,null,null,null,null,null,null,null,null,null,743,30]
[null,null,null,null,null,null,null,null,null,null,null,null,null,null,744,30]
[null,null,null,null,null,null,null,null,null,null,null,null,null,null,745,30]
[null,null,null,null,null,null,null,null,null,null,null,null,null,null,746,30]
[null,null,null,null,null,null,null,null,null,null,null,null,null,null,747,30]
[null,null,null,null,null,null,null,null,null,null,null,null,null,null,748,30]
[null,null,null,null,null,null,null,null,null,null,null,null,null,null,749,30]
[null,null,null,null,null,null,null,null,null,null,null,null,null,null,750,31]
[null,null,null,null,null,null,null,null,null,null,null,null,null,null,751,31]
[null,null,null,null,null,null,null,null,null,null,null,null,null,null,752,31]
[null,null,null,null,null,null,null,null,null,null,null,null,null,null,753,31]
[null,null,null,null,null,null,null,null,null,null,null,null,null,null,754,31]
[null,null,null,null,null,null,null,null,null,null,null,null,null,null,755,31]
[null,null,null,null,null,null,null,null,null,null,null,null,null,null,756,31]
[null,null,null,null,null,null,null,null,null,null,null,null,null,null,757,31]
[null,null,null,null,null,null,null,null,null,null,null,null,null,null,758,31]
[null,null,null,null,null,null,null,null,null,null,null,null,null,null,759,31]
[null,null,null,null,null,null,null,null,null,null,null,null,null,null,760,31]
[null,null,null,null,null,null,null,null,null,null,null,null,null,null,761,31]
[null,null,null,null,null,null,null,null,null,null,null,null,null,null,762,31]
[null,null,null,null,null,null,null,null,null,null,null,null,null,null,763,31]
[null,null,null,null,null,null,null,null,null,null,null,null,null,null,764,31]
[null,null,null,null,null,null,null,null,null,null,null,null,null,null,765,31]
[null,null,null,null,null,null,null,null,null,null,null,null,null,null,766,31]
[null,null,null,null,null,null,null,null,null,null,null,null,null,null,767,31]
[null,null,null,null,null,null,null,null,null,null,null,null,null,null,768,31]
[null,null,null,null,null,null,null,null,null,null,null,null,null,null,769,31]
[null,null,null,null,null,null,null,null,null,null,null,null,null,null,770,31]
[null,null,null,null,null,null,null,null,null,null,null,null,null,null,771,31]
[null,null,null,null,null,null,null,null,null,null,null,null,null,null,772,31]
[null,null,null,null,null,null,null,null,null,null,null,null,null,null,773,31]
[null,null,null,null,null,null,null,null,null,null,null,null,null,null,774,31]
[null,null,null,null,null,null,null,null,null,null,null,null,null,null,775,31]
[null,null,null,null,null,null,null,null,null,null,null,null,null,null,776,31]
[null,null,null,null,null,null,null,null,null,null,null,null,null,null,777,31]
[null,null,null,null,null,null,null,null,null,null,null,null,null,null,778,31]
[null,null,null,null,null,null,null,null,null,null,null,null,null,null,779,31]
[null,null,null,null,null,null,null,null,null,null,null,null,null,null,780,32]
[null,null,null,null,null,null,null,null,null,null,null,null,null,null,781,32]
[null,null,null,null,null,null,null,null,null,null,null,null,null,null,782,32]
[null,null,null,null,null,null,null,null,null,null,null,null,null,null,783,32]
[null,null,null,null,null,null,null,null,null,null,null,null,null,null,784,32]
[null,null,null,null,null,null,null,null,null,null,null,null,null,null,785,32]
[null,null,null,null,null,null,null,null,null,null,null,null,null,null,786,32]
[null,null,null,null,null,null,null,null,null,null,null,null,null,null,787,32]
[null,null,null,null,null,null,null,null,null,null,null,null,null,null,788,32]
[null,null,null,null,null,null,null,null,null,null,null,null,null,null,789,32]
[null,null,null,null,null,null,null,null,null,null,null,null,null,null,790,32]
[null,null,null,null,null,null,null,null,null,null,null,null,null,null,791,32]
[null,null,null,null,null,null,null,null,null,null,null,null,null,null,792,32]
[null,null,null,null,null,null,null,null,null,null,null,null,null,null,793,32]
[null,null,null,null,null,null,null,null,null,null,null,null,null,null,794,32]
[null,null,null,null,null,null,null,null,null,null,null,null,null,null,795,32]
[null,null,null,null,null,null,null,null,null,null,null,null,null,null,796,32]
[null,null,null,null,null,null,null,null,null,null,null,null,null,null,797,32]
[null,null,null,null,null,null,null,null,null,null,null,null,null,null,798,32]
[null,null,null,null,null,null,null,null,null,null,null,null,null,null,799,32]
[null,null,null,null,null,null,null,null,null,null,null,null,null,null,800,32]
[null,null,null,null,null,null,null,null,null,null,null,null,null,null,801,32]
[null,null,null,null,null,null,null,null,null,null,null,null,null,null,802,32]
[null,null,null,null,null,null,null,null,null,null,null,null,null,null,803,32]
[null,null,null,null,null,null,null,null,null,null,null,null,null,null,804,32]
[null,null,null,null,null,null,null,null,null,null,null,null,null,null,805,32]
[null,null,null,null,null,null,null,null,null,null,null,null,null,null,806,32]
[null,null,null,null,null,null,null,null,null,null,null,null,null,null,807,32]
[null,null,null,null,null,null,null,null,null,null,null,null,null,null,808,32]
[null,null,null,null,null,null,null,null,null,null,null,null,null,null,809,32]
[null,null,null,null,null,null,null,null,null,null,null,null,null,null,810,33]
[null,null,null,null,null,null,null,null,null,null,null,null,null,null,811,33]
[null,null,null,null,null,null,null,null,null,null,null,null,null,null,812,33]
[null,null,null,null,null,null,null,null,null,null,null,null,null,null,813,33]
[null,null,null,null,null,null,null,null,null,null,null,null,null,null,814,33]
[null,null,null,null,null,null,null,null,null,null,null,null,null,null,815,33]
[null,null,null,null,null,null,null,null,null,null,null,null,null,null,816,33]
[null,null,null,null,null,null,null,null,null,null,null,null,null,null,817,33]
[null,null,null,null,null,null,null,null,null,null,null,null,null,null,818,33]
[null,null,null,null,null,null,null,null,null,null,null,null,null,null,819,33]
[null,null,null,null,null,null,null,null,null,null,null,null,null,null,820,33]
[null,null,null,null,null,null,null,null,null,null,null,null,null,null,821,33]
[null,null,null,null,null,null,null,null,null,null,null,null,null,null,822,33]
[null,null,null,null,null,null,null,null,null,null,null,null,null,null,823,33]
[null,null,null,null,null,null,null,null,null,null,null,null,null,null,824,33]
[null,null,null,null,null,null,null,null,null,null,null,null,null,null,825,33]
[null,null,null,null,null,null,null,null,null,null,null,null,null,null,826,33]
[null,null,null,null,null,null,null,null,null,null,null,null,null,null,827,33]
[null,null,null,null,null,null,null,null,null,null,null,null,null,null,828,33]
[null,null,null,null,null,null,null,null,null,null,null,null,null,null,829,33]
[null,null,null,null,null,null,null,null,null,null,null,null,null,null,830,33]
[null,null,null,null,null,null,null,null,null,null,null,null,null,null,831,33]
[null,null,null,null,null,null,null,null,null,null,null,null,null,null,832,33]
[null,null,null,null,null,null,null,null,null,null,null,null,null,null,833,33]
[null,null,null,null,null,null,null,null,null,null,null,null,null,null,834,33]
[null,null,null,null,null,null,null,null,null,null,null,null,null,null,835,33]
[null,null,null,null,null,null,null,null,null,null,null,null,null,null,836,33]
[null,null,null,null,null,null,null,null,null,null,null,null,null,null,837,33]
[null,null,null,null,null,null,null,null,null,null,null,null,null,null,838,33]
[null,null,null,null,null,null,null,null,null,null,null,null,null,null,839,33]
[null,null,null,null,null,null,null,null,null,null,null,null,null,null,840,34]
[null,null,null,null,null,null,null,null,null,null,null,null,null,null,841,34]
[null,null,null,null,null,null,null,null,null,null,null,null,null,null,842,34]
[null,null,null,null,null,null,null,null,null,null,null,null,null,null,843,34]
[null,null,null,null,null,null,null,null,null,null,null,null,null,null,844,34]
[null,null,null,null,null,null,null,null,null,null,null,null,null,null,845,34]
[null,null,null,null,null,null,null,null,null,null,null,null,null,null,846,34]
[null,null,null,null,null,null,null,null,null,null,null,null,null,null,847,34]
[null,null,null,null,null,null,null,null,null,null,null,null,null,null,848,34]
[null,null,null,null,null,null,null,null,null,null,null,null,null,null,849,34]
[null,null,null,null,null,null,null,null,null,null,null,null,null,null,850,34]
[null,null,null,null,null,null,null,null,null,null,null,null,null,null,851,34]
[null,null,null,null,null,null,null,null,null,null,null,null,null,null,852,34]
[null,null,null,null,null,null,null,null,null,null,null,null,null,null,853,34]
[null,null,null,null,null,null,null,null,null,null,null,null,null,null,854,34]
[null,null,null,null,null,null,null,null,null,null,null,null,null,null,855,34]
[null,null,null,null,null,null,null,null,null,null,null,null,null,null,856,34]
[null,null,null,null,null,null,null,null,null,null,null,null,null,null,857,34]
[null,null,null,null,null,null,null,null,null,null,null,null,null,null,858,34]
[null,null,null,null,null,null,null,null,null,null,null,null,null,null,859,34]
[null,null,null,null,null,null,null,null,null,null,null,null,null,null,860,34]
[null,null,null,null,null,null,null,null,null,null,null,null,null,null,861,34]
[null,null,null,null,null,null,null,null,null,null,null,null,null,null,862,34]
[null,null,null,null,null,null,null,null,null,null,null,null,null,null,863,34]
[null,null,null,null,null,null,null,null,null,null,null,null,null,null,864,34]
[null,null,null,null,null,null,null,null,null,null,null,null,null,null,865,34]
[null,null,null,null,null,null,null,null,null,null,null,null,null,null,866,34]
[null,null,null,null,null,null,null,null,null,null,null,null,null,null,867,34]
[null,null,null,null,null,null,null,null,null,null,null,null,null,null,868,34]
[null,null,null,null,null,null,null,null,null,null,null,null,null,null,869,34]
[null,null,null,null,null,null,null,null,null,null,null,null,null,null,870,35]
[null,null,null,null,null,null,null,null,null,null,null,null,null,null,871,35]
[null,null,null,null,null,null,null,null,null,null,null,null,null,null,872,35]
[null,null,null,null,null,null,null,null,null,null,null,null,null,null,873,35]
[null,null,null,null,null,null,null,null,null,null,null,null,null,null,874,35]
[null,null,null,null,null,null,null,null,null,null,null,null,null,null,875,35]
[null,null,null,null,null,null,null,null,null,null,null,null,null,null,876,35]
[null,null,null,null,null,null,null,null,null,null,null,null,null,null,877,35]
[null,null,null,null,null,null,null,null,null,null,null,null,null,null,878,35]
[null,null,null,null,null,null,null,null,null,null,null,null,null,null,879,35]
[null,null,null,null,null,null,null,null,null,null,null,null,null,null,880,35]
[null,null,null,null,null,null,null,null,null,null,null,null,null,null,881,35]
[null,null,null,null,null,null,null,null,null,null,null,null,null,null,882,35]
[null,null,null,null,null,null,null,null,null,null,null,null,null,null,883,35]
[null,null,null,null,null,null,null,null,null,null,null,null,null,null,884,35]
[null,null,null,null,null,null,null,null,null,null,null,null,null,null,885,35]
[null,null,null,null,null,null,null,null,null,null,null,null,null,null,886,35]
[null,null,null,null,null,null,null,null,null,null,null,null,null,null,887,35]
[null,null,null,null,null,null,null,null,null,null,null,null,null,null,888,35]
[null,null,null,null,null,null,null,null,null,null,null,null,null,null,889,35]
[null,null,null,null,null,null,null,null,null,null,null,null,null,null,890,35]
[null,null,null,null,null,null,null,null,null,null,null,null,null,null,891,35]
[null,null,null,null,null,null,null,null,null,null,null,null,null,null,892,35]
[null,null,null,null,null,null,null,null,null,null,null,null,null,null,893,35]
[null,null,null,null,null,null,null,null,null,null,null,null,null,null,894,35]
[null,null,null,null,null,null,null,null,null,null,null,null,null,null,895,35]
[null,null,null,null,null,null,null,null,null,null,null,null,null,null,896,35]
[null,null,null,null,null,null,null,null,null,null,null,null,null,null,897,35]
[null,null,null,null,null,null,null,null,null,null,null,null,null,null,898,35]
[null,null,null,null,null,null,null,null,null,null,null,null,null,null,899,35]
[null,null,null,null,null,null,null,null,null,null,null,null,null,null,900,36]
[null,null,null,null,null,null,null,null,null,null,null,null,null,null,901,36]
[null,null,null,null,null,null,null,null,null,null,null,null,null,null,902,36]
[null,null,null,null,null,null,null,null,null,null,null,null,null,null,903,36]
[null,null,null,null,null,null,null,null,null,null,null,null,null,null,904,36]
[null,null,null,null,null,null,null,null,null,null,null,null,null,null,905,36]
[null,null,null,null,null,null,null,null,null,null,null,null,null,null,906,36]
[null,null,null,null,null,null,null,null,null,null,null,null,null,null,907,36]
[null,null,null,null,null,null,null,null,null,null,null,null,null,null,908,36]
[null,null,null,null,null,null,null,null,null,null,null,null,null,null,909,36]
[null,null,null,null,null,null,null,null,null,null,null,null,null,null,910,36]
[null,null,null,null,null,null,null,null,null,null,null,null,null,null,911,36]
[null,null,null,null,null,null,null,null,null,null,null,null,null,null,912,36]
[null,null,null,null,null,null,null,null,null,null,null,null,null,null,913,36]
[null,null,null,null,null,null,null,null,null,null,null,null,null,null,914,36]
[null,null,null,null,null,null,null,null,null,null,null,null,null,null,915,36]
[null,null,null,null,null,null,null,null,null,null,null,null,null,null,916,36]
[null,null,null,null,null,null,null,null,null,null,null,null,null,null,917,36]
[null,null,null,null,null,null,null,null,null,null,null,null,null,null,918,36]
[null,null,null,null,null,null,null,null,null,null,null,null,null,null,919,36]
[null,null,null,null,null,null,null,null,null,null,null,null,null,null,920,36]
[null,null,null,null,null,null,null,null,null,null,null,null,null,null,921,36]
[null,null,null,null,null,null,null,null,null,null,null,null,null,null,922,36]
[null,null,null,null,null,null,null,null,null,null,null,null,null,null,923,36]
[null,null,null,null,null,null,null,null,null,null,null,null,null,null,924,36]
[null,null,null,null,null,null,null,null,null,null,null,null,null,null,925,36]
[null,null,null,null,null,null,null,null,null,null,null,null,null,null,926,36]
[null,null,null,null,null,null,null,null,null,null,null,null,null,null,927,36]
[null,null,null,null,null,null,null,null,null,null,null,null,null,null,928,36]
[null,null,null,null,null,null,null,null,null,null,null,null,null,null,929,36]
[null,null,null,null,null,null,null,null,null,null,null,null,null,null,930,37]
[null,null,null,null,null,null,null,null,null,null,null,null,null,null,931,37]
[null,null,null,null,null,null,null,null,null,null,null,null,null,null,932,37]
[null,null,null,null,null,null,null,null,null,null,null,null,null,null,933,37]
[null,null,null,null,null,null,null,null,null,null,null,null,null,null,934,37]
[null,null,null,null,null,null,null,null,null,null,null,null,null,null,935,37]
[null,null,null,null,null,null,null,null,null,null,null,null,null,null,936,37]
[null,null,null,null,null,null,null,null,null,null,null,null,null,null,937,37]
[null,null,null,null,null,null,null,null,null,null,null,null,null,null,938,37]
[null,null,null,null,null,null,null,null,null,null,null,null,null,null,939,37]
[null,null,null,null,null,null,null,null,null,null,null,null,null,null,940,37]
[null,null,null,null,null,null,null,null,null,null,null,null,null,null,941,37]
[null,null,null,null,null,null,null,null,null,null,null,null,null,null,942,37]
[null,null,null,null,null,null,null,null,null,null,null,null,null,null,943,37]
[null,null,null,null,null,null,null,null,null,null,null,null,null,null,944,37]
[null,null,null,null,null,null,null,null,null,null,null,null,null,null,945,37]
[null,null,null,null,null,null,null,null,null,null,null,null,null,null,946,37]
[null,null,null,null,null,null,null,null,null,null,null,null,null,null,947,37]
[null,null,null,null,null,null,null,null,null,null,null,null,null,null,948,37]
[null,null,null,null,null,null,null,null,null,null,null,null,null,null,949,37]
[null,null,null,null,null,null,null,null,null,null,null,null,null,null,950,37]
[null,null,null,null,null,null,null,null,null,null,null,null,null,null,951,37]
[null,null,null,null,null,null,null,null,null,null,null,null,null,null,952,37]
[null,null,null,null,null,null,null,null,null,null,null,null,null,null,953,37]
[null,null,null,null,null,null,null,null,null,null,null,null,null,null,954,37]
[null,null,null,null,null,null,null,null,null,null,null,null,null,null,955,37]
[null,null,null,null,null,null,null,null,null,null,null,null,null,null,956,37]
[null,null,null,null,null,null,null,null,null,null,null,null,null,null,957,37]
[null,null,null,null,null,null,null,null,null,null,null,null,null,null,958,37]
[null,null,null,null,null,null,null,null,null,null,null,null,null,null,959,37]
[null,null,null,null,null,null,null,null,null,null,null,null,null,null,960,38]
[null,null,null,null,null,null,null,null,null,null,null,null,null,null,961,38]
[null,null,null,null,null,null,null,null,null,null,null,null,null,null,962,38]
[null,null,null,null,null,null,null,null,null,null,null,null,null,null,963,38]
[null,null,null,null,null,null,null,null,null,null,null,null,null,null,964,38]
[null,null,null,null,null,null,null,null,null,null,null,null,null,null,965,38]
[null,null,null,null,null,null,null,null,null,null,null,null,null,null,966,38]
[null,null,null,null,null,null,null,null,null,null,null,null,null,null,967,38]
[null,null,null,null,null,null,null,null,null,null,null,null,null,null,968,38]
[null,null,null,null,null,null,null,null,null,null,null,null,null,null,969,38]
[null,null,null,null,null,null,null,null,null,null,null,null,null,null,970,38]
[null,null,null,null,null,null,null,null,null,null,null,null,null,null,971,38]
[null,null,null,null,null,null,null,null,null,null,null,null,null,null,972,38]
[null,null,null,null,null,null,null,null,null,null,null,null,null,null,973,38]
[null,null,null,null,null,null,null,null,null,null,null,null,null,null,974,38]
[null,null,null,null,null,null,null,null,null,null,null,null,null,null,975,38]
[null,null,null,null,null,null,null,null,null,null,null,null,null,null,976,38]
[null,null,null,null,null,null,null,null,null,null,null,null,null,null,977,38]
[null,null,null,null,null,null,null,null,null,null,null,null,null,null,978,38]
[null,null,null,null,null,null,null,null,null,null,null,null,null,null,979,38]
[null,null,null,null,null,null,null,null,null,null,null,null,null,null,980,38]
[null,null,null,null,null,null,null,null,null,null,null,null,null,null,981,38]
[null,null,null,null,null,null,null,null,null,null,null,null,null,null,982,38]
[null,null,null,null,null,null,null,null,null,null,null,null,null,null,983,38]
[null,null,null,null,null,null,null,null,null,null,null,null,null,null,984,38]
[null,null,null,null,null,null,null,null,null,null,null,null,null,null,985,38]
[null,null,null,null,null,null,null,null,null,null,null,null,null,null,986,38]
[null,null,null,null,null,null,null,null,null,null,null,null,null,null,987,38]
[null,null,null,null,null,null,null,null,null,null,null,null,null,null,988,38]
[null,null,null,null,null,null,null,null,null,null,null,null,null,null,989,38]
[null,null,null,null,null,null,null,null,null,null,null,null,null,null,990,39]
[null,null,null,null,null,null,null,null,null,null,null,null,null,null,991,39]
[null,null,null,null,null,null,null,null,null,null,null,null,null,null,992,39]
[null,null,null,null,null,null,null,null,null,null,null,null,null,null,993,39]
[null,null,null,null,null,null,null,null,null,null,null,null,null,null,994,39]
[null,null,null,null,null,null,null,null,null,null,null,null,null,null,995,39]
[null,null,null,null,null,null,null,null,null,null,null,null,null,null,996,39]
[null,null,null,null,null,null,null,null,null,null,null,null,null,null,997,39]
[null,null,null,null,null,null,null,null,null,null,null,null,null,null,998,39]
[null,null,null,null,null,null,null,null,null,null,null,null,null,null,999,39]
[null,null,null,null,null,null,null,null,null,null,null,null,null,null,1000,39]
[null,null,null,null,null,null,null,null,null,null,null,null,null,null,1001,39]
[null,null,null,null,null,null,null,null,null,null,null,null,null,null,1002,39]
[null,null,null,null,null,null,null,null,null,null,null,null,null,null,1003,39]
[null,null,null,null,null,null,null,null,null,null,null,null,null,null,1004,39]
[null,null,null,null,null,null,null,null,null,null,null,null,null,null,1005,39]
[null,null,null,null,null,null,null,null,null,null,null,null,null,null,1006,39]
[null,null,null,null,null,null,null,null,null,null,null,null,null,null,1007,39]
[null,null,null,null,null,null,null,null,null,null,null,null,null,null,1008,39]
[null,null,null,null,null,null,null,null,null,null,null,null,null,null,1009,39]
[null,null,null,null,null,null,null,null,null,null,null,null,null,null,1010,39]
[null,null,null,null,null,null,null,null,null,null,null,null,null,null,1011,39]
[null,null,null,null,null,null,null,null,null,null,null,null,null,null,1012,39]
[null,null,null,null,null,null,null,null,null,null,null,null,null,null,1013,39]
[null,null,null,null,null,null,null,null,null,null,null,null,null,null,1014,39]
[null,null,null,null,null,null,null,null,null,null,null,null,null,null,1015,39]
[null,null,null,null,null,null,null,null,null,null,null,null,null,null,1016,39]
[null,null,null,null,null,null,null,null,null,null,null,null,null,null,1017,39]
[null,null,null,null,null,null,null,null,null,null,null,null,null,null,1018,39]
[null,null,null,null,null,null,null,null,null,null,null,null,null,null,1019,39]
[null,null,null,null,null,null,null,null,null,null,null,null,null,null,1020,40]
[null,null,null,null,null,null,null,null,null,null,null,null,null,null,1021,40]
[null,null,null,null,null,null,null,null,null,null,null,null,null,null,1022,40]
[null,null,null,null,null,null,null,null,null,null,null,null,null,null,1023,40]
[null,null,null,null,null,null,null,null,null,null,null,null,null,null,1024,40]
[null,null,null,null,null,null,null,null,null,null,null,null,null,null,1025,40]
[null,null,null,null,null,null,null,null,null,null,null,null,null,null,1026,40]
[null,null,null,null,null,null,null,null,null,null,null,null,null,null,1027,40]
[null,null,null,null,null,null,null,null,null,null,null,null,null,null,1028,40]
[null,null,null,null,null,null,null,null,null,null,null,null,null,null,1029,40]
[null,null,null,null,null,null,null,null,null,null,null,null,null,null,1030,40]
[null,null,null,null,null,null,null,null,null,null,null,null,null,null,1031,40]
[null,null,null,null,null,null,null,null,null,null,null,null,null,null,1032,40]
[null,null,null,null,null,null,null,null,null,null,null,null,null,null,1033,40]
[null,null,null,null,null,null,null,null,null,null,null,null,null,null,1034,40]
[null,null,null,null,null,null,null,null,null,null,null,null,null,null,1035,40]
[null,null,null,null,null,null,null,null,null,null,null,null,null,null,1036,40]
[null,null,null,null,null,null,null,null,null,null,null,null,null,null,1037,40]
[null,null,null,null,null,null,null,null,null,null,null,null,null,null,1038,40]
[null,null,null,null,null,null,null,null,null,null,null,null,null,null,1039,40]
[null,null,null,null,null,null,null,null,null,null,null,null,null,null,1040,40]
[null,null,null,null,null,null,null,null,null,null,null,null,null,null,1041,40]
[null,null,null,null,null,null,null,null,null,null,null,null,null,null,1042,40]
[null,null,null,null,null,null,null,null,null,null,null,null,null,null,1043,40]
[null,null,null,null,null,null,null,null,null,null,null,null,null,null,1044,40]
[null,null,null,null,null,null,null,null,null,null,null,null,null,null,1045,40]
[null,null,null,null,null,null,null,null,null,null,null,null,null,null,1046,40]
[null,null,null,null,null,null,null,null,null,null,null,null,null,null,1047,40]
[null,null,null,null,null,null,null,null,null,null,null,null,null,null,1048,40]
[null,null,null,null,null,null,null,null,null,null,null,null,null,null,1049,40]
[null,null,null,null,null,null,null,null,null,null,null,null,null,null,1050,41]
[null,null,null,null,null,null,null,null,null,null,null,null,null,null,1051,41]
[null,null,null,null,null,null,null,null,null,null,null,null,null,null,1052,41]
[null,null,null,null,null,null,null,null,null,null,null,null,null,null,1053,41]
[null,null,null,null,null,null,null,null,null,null,null,null,null,null,1054,41]
[null,null,null,null,null,null,null,null,null,null,null,null,null,null,1055,41]
[null,null,null,null,null,null,null,null,null,null,null,null,null,null,1056,41]
[null,null,null,null,null,null,null,null,null,null,null,null,null,null,1057,41]
[null,null,null,null,null,null,null,null,null,null,null,null,null,null,1058,41]
[null,null,null,null,null,null,null,null,null,null,null,null,null,null,1059,41]
[null,null,null,null,null,null,null,null,null,null,null,null,null,null,1060,41]
[null,null,null,null,null,null,null,null,null,null,null,null,null,null,1061,41]
[null,null,null,null,null,null,null,null,null,null,null,null,null,null,1062,41]
[null,null,null,null,null,null,null,null,null,null,null,null,null,null,1063,41]
[null,null,null,null,null,null,null,null,null,null,null,null,null,null,1064,41]
[null,null,null,null,null,null,null,null,null,null,null,null,null,null,1065,41]
[null,null,null,null,null,null,null,null,null,null,null,null,null,null,1066,41]
[null,null,null,null,null,null,null,null,null,null,null,null,null,null,1067,41]
[null,null,null,null,null,null,null,null,null,null,null,null,null,null,1068,41]
[null,null,null,null,null,null,null,null,null,null,null,null,null,null,1069,41]
[null,null,null,null,null,null,null,null,null,null,null,null,null,null,1070,41]
[null,null,null,null,null,null,null,null,null,null,null,null,null,null,1071,41]
[null,null,null,null,null,null,null,null,null,null,null,null,null,null,1072,41]
[null,null,null,null,null,null,null,null,null,null,null,null,null,null,1073,41]
[null,null,null,null,null,null,null,null,null,null,null,null,null,null,1074,41]
[null,null,null,null,null,null,null,null,null,null,null,null,null,null,1075,41]
[null,null,null,null,null,null,null,null,null,null,null,null,null,null,1076,41]
[null,null,null,null,null,null,null,null,null,null,null,null,null,null,1077,41]
[null,null,null,null,null,null,null,null,null,null,null,null,null,null,1078,41]
[null,null,null,null,null,null,null,null,null,null,null,null,null,null,1079,41]
[null,null,null,null,null,null,null,null,null,null,null,null,null,null,1080,42]
[null,null,null,null,null,null,null,null,null,null,null,null,null,null,1081,42]
[null,null,null,null,null,null,null,null,null,null,null,null,null,null,1082,42]
[null,null,null,null,null,null,null,null,null,null,null,null,null,null,1083,42]
[null,null,null,null,null,null,null,null,null,null,null,null,null,null,1084,42]
[null,null,null,null,null,null,null,null,null,null,null,null,null,null,1085,42]
[null,null,null,null,null,null,null,null,null,null,null,null,null,null,1086,42]
[null,null,null,null,null,null,null,null,null,null,null,null,null,null,1087,42]
[null,null,null,null,null,null,null,null,null,null,null,null,null,null,1088,42]
[null,null,null,null,null,null,null,null,null,null,null,null,null,null,1089,42]
[null,null,null,null,null,null,null,null,null,null,null,null,null,null,1090,42]
[null,null,null,null,null,null,null,null,null,null,null,null,null,null,1091,42]
[null,null,null,null,null,null,null,null,null,null,null,null,null,null,1092,42]
[null,null,null,null,null,null,null,null,null,null,null,null,null,null,1093,42]
[null,null,null,null,null,null,null,null,null,null,null,null,null,null,1094,42]
[null,null,null,null,null,null,null,null,null,null,null,null,null,null,1095,42]
[null,null,null,null,null,null,null,null,null,null,null,null,null,null,1096,42]
[null,null,null,null,null,null,null,null,null,null,null,null,null,null,1097,42]
[null,null,null,null,null,null,null,null,null,null,null,null,null,null,1098,42]
[null,null,null,null,null,null,null,null,null,null,null,null,null,null,1099,42]
[null,null,null,null,null,null,null,null,null,null,null,null,null,null,1100,42]

{"sheet":"Version","index":2,"n_rows":10,"n_cols":2,"rows_kept":10,"cut":false,"hidden":false,"merged":[]}
["Date","Changes"]
["2010-06-09","Fixed calculation for violations 5-10"]
["2010-06-22","Fixed # of days calculation"]
["2010-06-23","Added workbook protection, formatting"]
["2010-06-24","Fixed Macro Error"]
["2013-11-19","Fixed # of days calculation to extend past 1100"]
["2014-01-10","Added several rows to calculate the maximum for each violation and to calculate max and min penalties"]
[null,"Added User notes"]
["2014-02-03","Corrected data validation for Culpability, Cleanup & Cooperation, and History of Violations entries"]
["2014-02-04","Removed workbook protection"]

{"sheet":"User Notes","index":3,"n_rows":10,"n_cols":1,"rows_kept":10,"cut":false,"hidden":false,"merged":[]}
[]
["User notes for the Penalty Calculation Methodology worksheet"]
[]
["Yellow cells need the user to enter information. White cells are calculated from values entered in the yellow cells. Green cells are calculated from the selected factors."]
[]
["To start the Discharge Violations, select in the green section: (1) the potential for harm to beneficial uses; (2) the degree of toxicity of the discharge; (3) the discharge’s susceptibility to cleanup or abatement for each violation or group of violations; and (4) the Deviation from Requirement.  The values are calculated once the “Button” is pressed."]
[]
[" If you need to change a factor, you need to press the “Button” again to have the new values appear."]
[]
["For gallons, enter the number of gallons to be fined. This number may be different than the total number of gallons discharged."]